Publisher Label,Publisher URI,"Supplier ID","Supplier","Invoice No.","Amount £","Purpose","Transaction Number","Payment Date","Organisational Unit","Cost Centre(T)","Internal Category Number"
"Wolverhampton City Council","http://opendatacommunities.org/id/metropolitan-district-council/wolverhampton","710928","Yoo Recruit LTD","CWC10317154","353.25","Agency Staff","190546058","04/01/2019","Leisure Services","Central Baths","R1100"
"Wolverhampton City Council","http://opendatacommunities.org/id/metropolitan-district-council/wolverhampton","710928","Yoo Recruit LTD","CWC10317180","492.47","Agency Staff","190546084","04/01/2019","Customer Services","City Direct","R1100"
"Wolverhampton City Council","http://opendatacommunities.org/id/metropolitan-district-council/wolverhampton","710928","Yoo Recruit LTD","CWC10317145","199.32","Agency Staff","190546049","04/01/2019","Leisure Services","Central Baths","R1100"
"Wolverhampton City Council","http://opendatacommunities.org/id/metropolitan-district-council/wolverhampton","710928","Yoo Recruit LTD","CWC10317117","196.23","Agency Staff","190546021","04/01/2019","Leisure Services","Bert Williams Leisure Centre","R1100"
"Wolverhampton City Council","http://opendatacommunities.org/id/metropolitan-district-council/wolverhampton","710928","Yoo Recruit LTD","CWC10317189","509.25","Agency Staff","190546093","04/01/2019","Customer Services","City Direct","R1100"
"Wolverhampton City Council","http://opendatacommunities.org/id/metropolitan-district-council/wolverhampton","710928","Yoo Recruit LTD","CWC10317193","688.62","Agency Staff","190546097","04/01/2019","Customer Services","City Direct","R1100"
"Wolverhampton City Council","http://opendatacommunities.org/id/metropolitan-district-council/wolverhampton","710928","Yoo Recruit LTD","CWC10317216","49.28","Agency Staff","190546120","04/01/2019","Cleaning","External Cleaning","R1100"
"Wolverhampton City Council","http://opendatacommunities.org/id/metropolitan-district-council/wolverhampton","710928","Yoo Recruit LTD","CWC10317212","305.50","Agency Staff","190546116","04/01/2019","Cleaning","Cleaning of Buildings - General","R1100"
"Wolverhampton City Council","http://opendatacommunities.org/id/metropolitan-district-council/wolverhampton","710928","Yoo Recruit LTD","CWC10317221","293.04","Agency Staff","190546125","04/01/2019","Cleaning","External Cleaning","R1100"
"Wolverhampton City Council","http://opendatacommunities.org/id/metropolitan-district-council/wolverhampton","710928","Yoo Recruit LTD","CWC10317229","-2,377.50","Agency Staff","190546133","04/01/2019","Procurement Services","Corporate Procurement Unit","R1100"
"Wolverhampton City Council","http://opendatacommunities.org/id/metropolitan-district-council/wolverhampton","710928","Yoo Recruit LTD","CWC10317233","-2,377.50","Agency Staff","190546137","04/01/2019","Procurement Services","Corporate Procurement Unit","R1100"
"Wolverhampton City Council","http://opendatacommunities.org/id/metropolitan-district-council/wolverhampton","710928","Yoo Recruit LTD","CWC10317267","626.73","Agency Staff","190546171","04/01/2019","Waste and Recycling Service","Waste Collection and Recycling Service - General","R1100"
"Wolverhampton City Council","http://opendatacommunities.org/id/metropolitan-district-council/wolverhampton","710928","Yoo Recruit LTD","CWC10317273","243.15","Agency Staff","190546177","04/01/2019","Public Service Reform","Workforce Development Team","R1100"
"Wolverhampton City Council","http://opendatacommunities.org/id/metropolitan-district-council/wolverhampton","710928","Yoo Recruit LTD","CWC10317258","195.36","Agency Staff","190546162","04/01/2019","Transportation","Passenger Transport - General","R1100"
"Wolverhampton City Council","http://opendatacommunities.org/id/metropolitan-district-council/wolverhampton","710928","Yoo Recruit LTD","CWC10317302","249.83","Agency Staff","190546206","04/01/2019","Adult Education","Continuing Education","R1100"
"Wolverhampton City Council","http://opendatacommunities.org/id/metropolitan-district-council/wolverhampton","710928","Yoo Recruit LTD","CWC10317306","267.68","Agency Staff","190546210","04/01/2019","Adult Education","Access & FE","R1100"
"Wolverhampton City Council","http://opendatacommunities.org/id/metropolitan-district-council/wolverhampton","710928","Yoo Recruit LTD","CWC10317321","3.15","Agency Staff","190546225","04/01/2019","School Planning & Resources","Music Support Team","R1100"
"Wolverhampton City Council","http://opendatacommunities.org/id/metropolitan-district-council/wolverhampton","710928","Yoo Recruit LTD","CWC10317254","-916.30","Agency Staff","190546158","04/01/2019","Corporate Business Support","Corporate Programmes","R1100"
"Wolverhampton City Council","http://opendatacommunities.org/id/metropolitan-district-council/wolverhampton","710928","Yoo Recruit LTD","CWC10317256","-781.55","Agency Staff","190546160","04/01/2019","Corporate Business Support","Corporate Programmes","R1100"
"Wolverhampton City Council","http://opendatacommunities.org/id/metropolitan-district-council/wolverhampton","710928","Yoo Recruit LTD","CWC10317281","231.84","Agency Staff","190546185","04/01/2019","Enterprise","Economic Development","R1100"
"Wolverhampton City Council","http://opendatacommunities.org/id/metropolitan-district-council/wolverhampton","710928","Yoo Recruit LTD","CWC10317328","387.52","Agency Staff","190546232","04/01/2019","School Planning & Resources","Music Support Team","R1100"
"Wolverhampton City Council","http://opendatacommunities.org/id/metropolitan-district-council/wolverhampton","710928","Yoo Recruit LTD","CWC10317279","199.95","Agency Staff","190546183","04/01/2019","Visitor Economy","Education And Access","R1100"
"Wolverhampton City Council","http://opendatacommunities.org/id/metropolitan-district-council/wolverhampton","710928","Yoo Recruit LTD","CWC10317364","531.72","Agency Staff","190546268","04/01/2019","Public Service Reform","Management Trainee Programme","R1100"
"Wolverhampton City Council","http://opendatacommunities.org/id/metropolitan-district-council/wolverhampton","710928","Yoo Recruit LTD","CWC10317350","257.20","Agency Staff","190546254","04/01/2019","Special Educational Needs","Special - Transport","R1100"
"Wolverhampton City Council","http://opendatacommunities.org/id/metropolitan-district-council/wolverhampton","710928","Yoo Recruit LTD","CWC10317393","492.47","Agency Staff","190546297","04/01/2019","The Hub","Payroll/HR","R1100"
"Wolverhampton City Council","http://opendatacommunities.org/id/metropolitan-district-council/wolverhampton","710928","Yoo Recruit LTD","CWC10317395","288.99","Agency Staff","190546299","04/01/2019","Human Resources","Occupational Health","R1100"
"Wolverhampton City Council","http://opendatacommunities.org/id/metropolitan-district-council/wolverhampton","710928","Yoo Recruit LTD","CWC10317396","422.37","Agency Staff","190546300","04/01/2019","Human Resources","Occupational Health","R1100"
"Wolverhampton City Council","http://opendatacommunities.org/id/metropolitan-district-council/wolverhampton","710928","Yoo Recruit LTD","CWC10333310","249.83","Agency Staff","190553544","23/01/2019","Adult Education","Continuing Education","R1100"
"Wolverhampton City Council","http://opendatacommunities.org/id/metropolitan-district-council/wolverhampton","710928","Yoo Recruit LTD","CWC10333373","99.68","Agency Staff","190553595","23/01/2019","Visitor Economy","Civic Halls Non-Direct Event Management Account","R1100"
"Wolverhampton City Council","http://opendatacommunities.org/id/metropolitan-district-council/wolverhampton","710928","Yoo Recruit LTD","CWC10333388","225.04","Agency Staff","190553611","23/01/2019","Leisure Services","WV Active Business Support","R1100"
"Wolverhampton City Council","http://opendatacommunities.org/id/metropolitan-district-council/wolverhampton","710928","Yoo Recruit LTD","CWC10333355","305.25","Agency Staff","190553583","23/01/2019","Special Educational Needs","Special - Transport","R1100"
"Wolverhampton City Council","http://opendatacommunities.org/id/metropolitan-district-council/wolverhampton","710928","Yoo Recruit LTD","CWC10333392","323.64","Agency Staff","190553614","23/01/2019","Leisure Services","WV Active Business Support","R1100"
"Wolverhampton City Council","http://opendatacommunities.org/id/metropolitan-district-council/wolverhampton","710928","Yoo Recruit LTD","CWC10333374","232.40","Agency Staff","190553596","23/01/2019","Visitor Economy","Curatorial - Cultural Learning","R1100"
"Wolverhampton City Council","http://opendatacommunities.org/id/metropolitan-district-council/wolverhampton","710928","Yoo Recruit LTD","CWC10333415","229.81","Agency Staff","190553645","23/01/2019","Strengthening Families","CP Area 3 - Graiseley","R1100"
"Wolverhampton City Council","http://opendatacommunities.org/id/metropolitan-district-council/wolverhampton","710928","Yoo Recruit LTD","CWC10333434","1,573.88","Agency Staff","190553659","23/01/2019","Strengthening Families","CP Area 4- Bingley","R1100"
"Wolverhampton City Council","http://opendatacommunities.org/id/metropolitan-district-council/wolverhampton","710928","Yoo Recruit LTD","CWC10333469","8.60","Agency Staff","190553685","23/01/2019","Adults Assessment & Care Management SLC","Supporting Life Choices","R1100"
"Wolverhampton City Council","http://opendatacommunities.org/id/metropolitan-district-council/wolverhampton","710928","Yoo Recruit LTD","CWC103332","1,549.19","Agency Staff","190553269","23/01/2019","Children & Young People In Care","Fostering Team & Allowances","R1100"
"Wolverhampton City Council","http://opendatacommunities.org/id/metropolitan-district-council/wolverhampton","710928","Yoo Recruit LTD","CWC1033398","-27.65","Agency Staff","190553355","23/01/2019","Leisure Services","Aldersley Leisure Village","R1100"
"Wolverhampton City Council","http://opendatacommunities.org/id/metropolitan-district-council/wolverhampton","710928","Yoo Recruit LTD","CWC10333120","-27.65","Agency Staff","190553361","23/01/2019","Leisure Services","Aldersley Leisure Village","R1100"
"Wolverhampton City Council","http://opendatacommunities.org/id/metropolitan-district-council/wolverhampton","710928","Yoo Recruit LTD","CWC1033390","-67.05","Agency Staff","190553352","23/01/2019","Leisure Services","Aldersley Leisure Village","R1100"
"Wolverhampton City Council","http://opendatacommunities.org/id/metropolitan-district-council/wolverhampton","710928","Yoo Recruit LTD","CWC10333100","-27.65","Agency Staff","190553356","23/01/2019","Leisure Services","Aldersley Leisure Village","R1100"
"Wolverhampton City Council","http://opendatacommunities.org/id/metropolitan-district-council/wolverhampton","710928","Yoo Recruit LTD","CWC10333161","353.25","Agency Staff","190553414","23/01/2019","Leisure Services","Central Baths","R1100"
"Wolverhampton City Council","http://opendatacommunities.org/id/metropolitan-district-council/wolverhampton","710928","Yoo Recruit LTD","CWC10333160","338.58","Agency Staff","190553413","23/01/2019","Leisure Services","Central Baths","R1100"
"Wolverhampton City Council","http://opendatacommunities.org/id/metropolitan-district-council/wolverhampton","710928","Yoo Recruit LTD","CWC10333187","332.75","Agency Staff","190553430","23/01/2019","Customer Services","City Direct","R1100"
"Wolverhampton City Council","http://opendatacommunities.org/id/metropolitan-district-council/wolverhampton","710928","Yoo Recruit LTD","CWC10329314","-615.38","Agency Staff","190550794","16/01/2019","Digital Transformation Programme","Digital Transformation Programme","R1100"
"Wolverhampton City Council","http://opendatacommunities.org/id/metropolitan-district-council/wolverhampton","710928","Yoo Recruit LTD","CWC1032913","755.10","Agency Staff","190550493","16/01/2019","Independent Living Service","Adaptations Team","R1100"
"Wolverhampton City Council","http://opendatacommunities.org/id/metropolitan-district-council/wolverhampton","710928","Yoo Recruit LTD","CWC10329327","6.30","Agency Staff","190550807","16/01/2019","Adults Assessment & Care Management SLC","Supporting Life Choices","R1100"
"Wolverhampton City Council","http://opendatacommunities.org/id/metropolitan-district-council/wolverhampton","710928","Yoo Recruit LTD","CWC10329326","3.60","Agency Staff","190550806","16/01/2019","Adults Assessment & Care Management SLC","Supporting Life Choices","R1100"
"Wolverhampton City Council","http://opendatacommunities.org/id/metropolitan-district-council/wolverhampton","710928","Yoo Recruit LTD","CWC10329333","1,026.00","Agency Staff","190550813","16/01/2019","Adults Assessment & Care Management SLC","Supporting Life Choices","R1100"
"Wolverhampton City Council","http://opendatacommunities.org/id/metropolitan-district-council/wolverhampton","710928","Yoo Recruit LTD","CWC10329282","1,214.71","Agency Staff","190550762","16/01/2019","Strengthening Families","CP Area 2 - Bilston/Rocket Pool","R1100"
"Wolverhampton City Council","http://opendatacommunities.org/id/metropolitan-district-council/wolverhampton","710928","Yoo Recruit LTD","CWC10329272","140.65","Agency Staff","190550752","16/01/2019","Leisure Services","WV Active Business Support","R1100"
"Wolverhampton City Council","http://opendatacommunities.org/id/metropolitan-district-council/wolverhampton","710928","Yoo Recruit LTD","CWC10329336","304.16","Agency Staff","190550816","16/01/2019","Headstart","Headstart - Learning Technologies Team","R1100"
"Wolverhampton City Council","http://opendatacommunities.org/id/metropolitan-district-council/wolverhampton","710928","Yoo Recruit LTD","CWC10329337","912.48","Agency Staff","190550817","16/01/2019","Headstart","Headstart - Learning Technologies Team","R1100"
"Wolverhampton City Council","http://opendatacommunities.org/id/metropolitan-district-council/wolverhampton","710928","Yoo Recruit LTD","CWC10329278","392.65","Agency Staff","190550758","16/01/2019","The Hub","Payroll/HR","R1100"
"Wolverhampton City Council","http://opendatacommunities.org/id/metropolitan-district-council/wolverhampton","710928","Yoo Recruit LTD","CWC1032934","282.00","Agency Staff","190550514","16/01/2019","Emergency Duty Team","Emergency Duty Team","R1100"
"Wolverhampton City Council","http://opendatacommunities.org/id/metropolitan-district-council/wolverhampton","710928","Yoo Recruit LTD","CWC1032924","402.19","Agency Staff","190550504","16/01/2019","Learning Disability Provider","Duke Street Bungalows","R1100"
"Wolverhampton City Council","http://opendatacommunities.org/id/metropolitan-district-council/wolverhampton","710928","Yoo Recruit LTD","CWC1032925","33.95","Agency Staff","190550505","16/01/2019","Learning Disability Provider","Duke Street Bungalows","R1100"
"Wolverhampton City Council","http://opendatacommunities.org/id/metropolitan-district-council/wolverhampton","710928","Yoo Recruit LTD","CWC1032918","160.49","Agency Staff","190550498","16/01/2019","Learning Disability Provider","Duke Street Bungalows","R1100"
"Wolverhampton City Council","http://opendatacommunities.org/id/metropolitan-district-council/wolverhampton","710928","Yoo Recruit LTD","CWC1032928","150.31","Agency Staff","190550508","16/01/2019","Learning Disability Provider","Ernest Bold Court","R1100"
"Wolverhampton City Council","http://opendatacommunities.org/id/metropolitan-district-council/wolverhampton","710928","Yoo Recruit LTD","CWC1032947","63.00","Agency Staff","190550527","16/01/2019","Independent Living Service","Independent Living Service","R1100"
"Wolverhampton City Council","http://opendatacommunities.org/id/metropolitan-district-council/wolverhampton","710928","Yoo Recruit LTD","CWC1032938","98.88","Agency Staff","190550518","16/01/2019","Local Economy","Global Budgets","R1100"
"Wolverhampton City Council","http://opendatacommunities.org/id/metropolitan-district-council/wolverhampton","710928","Yoo Recruit LTD","CWC1032940","37.08","Agency Staff","190550520","16/01/2019","Local Economy","Global Budgets","R1100"
"Wolverhampton City Council","http://opendatacommunities.org/id/metropolitan-district-council/wolverhampton","710928","Yoo Recruit LTD","CWC1032951","0.67","Agency Staff","190550531","16/01/2019","Independent Living Service","Independent Living Service","R1100"
"Wolverhampton City Council","http://opendatacommunities.org/id/metropolitan-district-council/wolverhampton","710928","Yoo Recruit LTD","CWC1032942","203.94","Agency Staff","190550522","16/01/2019","Local Economy","Global Budgets","R1100"
"Wolverhampton City Council","http://opendatacommunities.org/id/metropolitan-district-council/wolverhampton","710928","Yoo Recruit LTD","CWC1032987","98.48","Agency Staff","190550567","16/01/2019","Leisure Services","Bert Williams Leisure Centre","R1100"
"Wolverhampton City Council","http://opendatacommunities.org/id/metropolitan-district-council/wolverhampton","710928","Yoo Recruit LTD","CWC1032972","296.28","Agency Staff","190550552","16/01/2019","Older People Provider Services","Bradley Lodge Resource Centre","R1100"
"Wolverhampton City Council","http://opendatacommunities.org/id/metropolitan-district-council/wolverhampton","710928","Yoo Recruit LTD","CWC1032985","27.65","Agency Staff","190550565","16/01/2019","Leisure Services","Aldersley Leisure Village","R1100"
"Wolverhampton City Council","http://opendatacommunities.org/id/metropolitan-district-council/wolverhampton","710928","Yoo Recruit LTD","CWC1032962","3.42","Agency Staff","190550542","16/01/2019","Independent Living Service","Independent Living Service","R1100"
"Wolverhampton City Council","http://opendatacommunities.org/id/metropolitan-district-council/wolverhampton","710928","Yoo Recruit LTD","CWC10329106","107.28","Agency Staff","190550586","16/01/2019","Leisure Services","Central Baths","R1100"
"Wolverhampton City Council","http://opendatacommunities.org/id/metropolitan-district-council/wolverhampton","710928","Yoo Recruit LTD","CWC1032976","55.40","Agency Staff","190550556","16/01/2019","Leisure Services","WV Active Catering","R1100"
"Wolverhampton City Council","http://opendatacommunities.org/id/metropolitan-district-council/wolverhampton","710928","Yoo Recruit LTD","CWC1032957","1.57","Agency Staff","190550537","16/01/2019","Independent Living Service","Independent Living Service","R1100"
"Wolverhampton City Council","http://opendatacommunities.org/id/metropolitan-district-council/wolverhampton","710928","Yoo Recruit LTD","CWC1032953","1.57","Agency Staff","190550533","16/01/2019","Independent Living Service","Independent Living Service","R1100"
"Wolverhampton City Council","http://opendatacommunities.org/id/metropolitan-district-council/wolverhampton","710928","Yoo Recruit LTD","CWC10329105","418.54","Agency Staff","190550585","16/01/2019","Leisure Services","Bert Williams Leisure Centre","R1100"
"Wolverhampton City Council","http://opendatacommunities.org/id/metropolitan-district-council/wolverhampton","710928","Yoo Recruit LTD","CWC10329129","298.76","Agency Staff","190550609","16/01/2019","Customer Services","City Direct","R1100"
"Wolverhampton City Council","http://opendatacommunities.org/id/metropolitan-district-council/wolverhampton","710928","Yoo Recruit LTD","CWC10329145","442.42","Agency Staff","190550625","16/01/2019","Customer Services","City Direct","R1100"
"Wolverhampton City Council","http://opendatacommunities.org/id/metropolitan-district-council/wolverhampton","710928","Yoo Recruit LTD","CWC10329139","99.98","Agency Staff","190550619","16/01/2019","Customer Services","City Direct","R1100"
"Wolverhampton City Council","http://opendatacommunities.org/id/metropolitan-district-council/wolverhampton","710928","Yoo Recruit LTD","CWC10329185","895.71","Agency Staff","190550665","16/01/2019","Revenues & Benefits","Revenues","R1100"
"Wolverhampton City Council","http://opendatacommunities.org/id/metropolitan-district-council/wolverhampton","710928","Yoo Recruit LTD","CWC10329191","1,011.95","Agency Staff","190550671","16/01/2019","Revenues & Benefits","Revenues","R1100"
"Wolverhampton City Council","http://opendatacommunities.org/id/metropolitan-district-council/wolverhampton","710928","Yoo Recruit LTD","CWC10329233","225.05","Agency Staff","190550713","16/01/2019","Special Educational Needs","Special - Transport","R1100"
"Wolverhampton City Council","http://opendatacommunities.org/id/metropolitan-district-council/wolverhampton","710928","Yoo Recruit LTD","CWC10329215","132.48","Agency Staff","190550695","16/01/2019","Licensing","Licensing - Private Hire Vehicles","R1100"
"Wolverhampton City Council","http://opendatacommunities.org/id/metropolitan-district-council/wolverhampton","710928","Yoo Recruit LTD","CWC10329213","289.39","Agency Staff","190550693","16/01/2019","Licensing","Licensing - Private Hire Vehicles","R1100"
"Wolverhampton City Council","http://opendatacommunities.org/id/metropolitan-district-council/wolverhampton","710928","Yoo Recruit LTD","CWC10329140","292.82","Agency Staff","190550620","16/01/2019","Customer Services","City Direct","R1100"
"Wolverhampton City Council","http://opendatacommunities.org/id/metropolitan-district-council/wolverhampton","710928","Yoo Recruit LTD","CWC10329210","1,558.00","Agency Staff","190550690","16/01/2019","Licensing","Licensing - General","R1100"
"Wolverhampton City Council","http://opendatacommunities.org/id/metropolitan-district-council/wolverhampton","710928","Yoo Recruit LTD","CWC10329142","266.20","Agency Staff","190550622","16/01/2019","Customer Services","City Direct","R1100"
"Wolverhampton City Council","http://opendatacommunities.org/id/metropolitan-district-council/wolverhampton","710928","Yoo Recruit LTD","CWC10329172","356.62","Agency Staff","190550652","16/01/2019","Parking Services","Parking Enforcement","R1100"
"Wolverhampton City Council","http://opendatacommunities.org/id/metropolitan-district-council/wolverhampton","710928","Yoo Recruit LTD","CWC10329151","366.03","Agency Staff","190550631","16/01/2019","Customer Services","City Direct","R1100"
"Wolverhampton City Council","http://opendatacommunities.org/id/metropolitan-district-council/wolverhampton","710928","Yoo Recruit LTD","CWC10329162","49.28","Agency Staff","190550642","16/01/2019","Cleaning","External Cleaning","R1100"
"Wolverhampton City Council","http://opendatacommunities.org/id/metropolitan-district-council/wolverhampton","710928","Yoo Recruit LTD","CWC10329176","183.90","Agency Staff","190550656","16/01/2019","Markets","Shopmobility","R1100"
"Wolverhampton City Council","http://opendatacommunities.org/id/metropolitan-district-council/wolverhampton","710928","Yoo Recruit LTD","CWC10329166","1,912.89","Agency Staff","190550646","16/01/2019","ICTS","Application Management","R1100"
"Wolverhampton City Council","http://opendatacommunities.org/id/metropolitan-district-council/wolverhampton","710928","Yoo Recruit LTD","CWC10329199","231.84","Agency Staff","190550679","16/01/2019","Enterprise","Economic Development","R1100"
"Wolverhampton City Council","http://opendatacommunities.org/id/metropolitan-district-council/wolverhampton","710928","Yoo Recruit LTD","CWC10329179","451.28","Agency Staff","190550659","16/01/2019","Revenues & Benefits","Revenues","R1100"
"Wolverhampton City Council","http://opendatacommunities.org/id/metropolitan-district-council/wolverhampton","710928","Yoo Recruit LTD","CWC10329167","1,414.50","Agency Staff","190550647","16/01/2019","Procurement Services","Corporate Procurement Unit","R1100"
"Wolverhampton City Council","http://opendatacommunities.org/id/metropolitan-district-council/wolverhampton","710928","Yoo Recruit LTD","CWC10329221","905.00","Agency Staff","190550701","16/01/2019","Adult Education","Central Costs","R1100"
"Wolverhampton City Council","http://opendatacommunities.org/id/metropolitan-district-council/wolverhampton","710928","Yoo Recruit LTD","CWC10329222","175.15","Agency Staff","190550702","16/01/2019","Adult Education","Communication Studies","R1100"
"Wolverhampton City Council","http://opendatacommunities.org/id/metropolitan-district-council/wolverhampton","710928","Yoo Recruit LTD","CWC10329228","175.15","Agency Staff","190550708","16/01/2019","Adult Education","Communication Studies","R1100"
"Wolverhampton City Council","http://opendatacommunities.org/id/metropolitan-district-council/wolverhampton","710928","Yoo Recruit LTD","CWC10329224","175.15","Agency Staff","190550704","16/01/2019","Adult Education","Communication Studies","R1100"
"Wolverhampton City Council","http://opendatacommunities.org/id/metropolitan-district-council/wolverhampton","710928","Yoo Recruit LTD","CWC10329229","196.91","Agency Staff","190550709","16/01/2019","School Planning & Resources","Pupil & Student Support","R1100"
"Wolverhampton City Council","http://opendatacommunities.org/id/metropolitan-district-council/wolverhampton","710928","Yoo Recruit LTD","CWC10329239","-186.90","Agency Staff","190550719","16/01/2019","Central Education","Miscellaneous - LEA Initiatives","R1100"
"Wolverhampton City Council","http://opendatacommunities.org/id/metropolitan-district-council/wolverhampton","710928","Yoo Recruit LTD","CWC10329206","1,792.89","Agency Staff","190550686","16/01/2019","Housing","Private Sector Housing","R1100"
"Wolverhampton City Council","http://opendatacommunities.org/id/metropolitan-district-council/wolverhampton","710928","Yoo Recruit LTD","CWC10329184","806.83","Agency Staff","190550664","16/01/2019","Revenues & Benefits","Revenues","R1100"
"Wolverhampton City Council","http://opendatacommunities.org/id/metropolitan-district-council/wolverhampton","710928","Yoo Recruit LTD","CWC10329242","-37.38","Agency Staff","190550722","16/01/2019","Central Education","Miscellaneous - LEA Initiatives","R1100"
"Wolverhampton City Council","http://opendatacommunities.org/id/metropolitan-district-council/wolverhampton","710928","Yoo Recruit LTD","CWC10329247","306.13","Agency Staff","190550727","16/01/2019","The Hub","Quality and Improvement","R1100"
"Wolverhampton City Council","http://opendatacommunities.org/id/metropolitan-district-council/wolverhampton","710928","Yoo Recruit LTD","CWC10329230","187.84","Agency Staff","190550710","16/01/2019","Special Educational Needs","Special - Transport","R1100"
"Wolverhampton City Council","http://opendatacommunities.org/id/metropolitan-district-council/wolverhampton","710928","Yoo Recruit LTD","CWC10329305","-1,011.95","Agency Staff","190550785","16/01/2019","Digital Transformation Programme","Digital Transformation Programme","R1100"
"Wolverhampton City Council","http://opendatacommunities.org/id/metropolitan-district-council/wolverhampton","710928","Yoo Recruit LTD","CWC10329319","984.90","Agency Staff","190550799","16/01/2019","Adults Assessment & Care Management West","Adult Services � West","R1100"
"Wolverhampton City Council","http://opendatacommunities.org/id/metropolitan-district-council/wolverhampton","710928","Yoo Recruit LTD","CWC10329309","-943.58","Agency Staff","190550789","16/01/2019","Digital Transformation Programme","Digital Transformation Programme","R1100"
"Wolverhampton City Council","http://opendatacommunities.org/id/metropolitan-district-council/wolverhampton","710928","Yoo Recruit LTD","CWC10329100","200.96","Agency Staff","190550580","16/01/2019","Leisure Services","Bert Williams Leisure Centre","R1100"
"Wolverhampton City Council","http://opendatacommunities.org/id/metropolitan-district-council/wolverhampton","710928","Yoo Recruit LTD","CWC103292","963.01","Agency Staff","190550482","16/01/2019","Children & Young People In Care","Fostering Team & Allowances","R1100"
"Wolverhampton City Council","http://opendatacommunities.org/id/metropolitan-district-council/wolverhampton","710928","Yoo Recruit LTD","CWC10329285","787.92","Agency Staff","190550765","16/01/2019","Strengthening Families","CP Area 2 - Bilston/Rocket Pool","R1100"
"Wolverhampton City Council","http://opendatacommunities.org/id/metropolitan-district-council/wolverhampton","710928","Yoo Recruit LTD","CWC1032961","3.06","Agency Staff","190550541","16/01/2019","Independent Living Service","Independent Living Service","R1100"
"Wolverhampton City Council","http://opendatacommunities.org/id/metropolitan-district-council/wolverhampton","710928","Yoo Recruit LTD","CWC10329119","353.25","Agency Staff","190550599","16/01/2019","Leisure Services","Central Baths","R1100"
"Wolverhampton City Council","http://opendatacommunities.org/id/metropolitan-district-council/wolverhampton","710928","Yoo Recruit LTD","CWC10329112","162.00","Agency Staff","190550592","16/01/2019","Leisure Services","Central Baths","R1100"
"Wolverhampton City Council","http://opendatacommunities.org/id/metropolitan-district-council/wolverhampton","710928","Yoo Recruit LTD","CWC1032945","184.80","Agency Staff","190550525","16/01/2019","Local Economy","Adult Lending Library","R1100"
"Wolverhampton City Council","http://opendatacommunities.org/id/metropolitan-district-council/wolverhampton","710928","Yoo Recruit LTD","CWC10329110","226.61","Agency Staff","190550590","16/01/2019","Leisure Services","Central Baths","R1100"
"Wolverhampton City Council","http://opendatacommunities.org/id/metropolitan-district-council/wolverhampton","710928","Yoo Recruit LTD","CWC10329120","172.51","Agency Staff","190550600","16/01/2019","Leisure Services","Central Baths","R1100"
"Wolverhampton City Council","http://opendatacommunities.org/id/metropolitan-district-council/wolverhampton","710928","Yoo Recruit LTD","CWC1032917","402.19","Agency Staff","190550497","16/01/2019","Learning Disability Provider","Duke Street Bungalows","R1100"
"Wolverhampton City Council","http://opendatacommunities.org/id/metropolitan-district-council/wolverhampton","710928","Yoo Recruit LTD","CWC10317335","48.84","Agency Staff","190546239","04/01/2019","Special Educational Needs","Special - Transport","R1100"
"Wolverhampton City Council","http://opendatacommunities.org/id/metropolitan-district-council/wolverhampton","710928","Yoo Recruit LTD","CWC10317352","461.63","Agency Staff","190546256","04/01/2019","School Planning & Resources","Technical Support","R1100"
"Wolverhampton City Council","http://opendatacommunities.org/id/metropolitan-district-council/wolverhampton","710928","Yoo Recruit LTD","CWC10317360","502.46","Agency Staff","190546264","04/01/2019","Safeguarding","Head of Service Quality and Safeguarding","R1100"
"Wolverhampton City Council","http://opendatacommunities.org/id/metropolitan-district-council/wolverhampton","710928","Yoo Recruit LTD","CWC10317356","492.47","Agency Staff","190546260","04/01/2019","The Hub","Quality and Improvement","R1100"
"Wolverhampton City Council","http://opendatacommunities.org/id/metropolitan-district-council/wolverhampton","710928","Yoo Recruit LTD","CWC10317349","257.20","Agency Staff","190546253","04/01/2019","Special Educational Needs","Special - Transport","R1100"
"Wolverhampton City Council","http://opendatacommunities.org/id/metropolitan-district-council/wolverhampton","710928","Yoo Recruit LTD","CWC10317346","244.20","Agency Staff","190546250","04/01/2019","Special Educational Needs","Special - Transport","R1100"
"Wolverhampton City Council","http://opendatacommunities.org/id/metropolitan-district-council/wolverhampton","710928","Yoo Recruit LTD","CWC10317347","252.40","Agency Staff","190546251","04/01/2019","Special Educational Needs","Special - Transport","R1100"
"Wolverhampton City Council","http://opendatacommunities.org/id/metropolitan-district-council/wolverhampton","710928","Yoo Recruit LTD","CWC10317355","438.96","Agency Staff","190546259","04/01/2019","Governance Services","Scrutiny","R1100"
"Wolverhampton City Council","http://opendatacommunities.org/id/metropolitan-district-council/wolverhampton","710928","Yoo Recruit LTD","CWC10317376","196.91","Agency Staff","190546280","04/01/2019","Leisure Services","WV Active Business Support","R1100"
"Wolverhampton City Council","http://opendatacommunities.org/id/metropolitan-district-council/wolverhampton","710928","Yoo Recruit LTD","CWC10317383","281.30","Agency Staff","190546287","04/01/2019","Leisure Services","WV Active Business Support","R1100"
"Wolverhampton City Council","http://opendatacommunities.org/id/metropolitan-district-council/wolverhampton","710928","Yoo Recruit LTD","CWC10317403","3.00","Agency Staff","190546307","04/01/2019","Strengthening Families","CP Area 3 - Graiseley","R1100"
"Wolverhampton City Council","http://opendatacommunities.org/id/metropolitan-district-council/wolverhampton","710928","Yoo Recruit LTD","CWC10317486","3,363.15","Agency Staff","190546390","04/01/2019","Digital Transformation Programme","Digital Transformation Programme (Recharge to Capital)","R1100"
"Wolverhampton City Council","http://opendatacommunities.org/id/metropolitan-district-council/wolverhampton","710928","Yoo Recruit LTD","CWC10317488","49.84","Agency Staff","190546392","04/01/2019","Visitor Economy","VEC - Casual & Agency Staff","R1100"
"Wolverhampton City Council","http://opendatacommunities.org/id/metropolitan-district-council/wolverhampton","710928","Yoo Recruit LTD","CWC10317482","3,091.30","Agency Staff","190546386","04/01/2019","Digital Transformation Programme","Digital Transformation Programme (Recharge to Capital)","R1100"
"Wolverhampton City Council","http://opendatacommunities.org/id/metropolitan-district-council/wolverhampton","710928","Yoo Recruit LTD","CWC10317472","227.64","Agency Staff","190546376","04/01/2019","Visitor Economy","Touring Cost  - ACE NPO","R1100"
"Wolverhampton City Council","http://opendatacommunities.org/id/metropolitan-district-council/wolverhampton","710928","Yoo Recruit LTD","CWC10317501","199.36","Agency Staff","190546405","04/01/2019","Visitor Economy","VEC - Casual & Agency Staff","R1100"
"Wolverhampton City Council","http://opendatacommunities.org/id/metropolitan-district-council/wolverhampton","710928","Yoo Recruit LTD","CWC1031731","703.00","Agency Staff","190545935","04/01/2019","Adults Assessment & Care Management North","Learning Disabilities Assessment and Care Management","R1100"
"Wolverhampton City Council","http://opendatacommunities.org/id/metropolitan-district-council/wolverhampton","710928","Yoo Recruit LTD","CWC1031714","1.80","Agency Staff","190545918","04/01/2019","Youth Offending","Youth Offending Team","R1100"
"Wolverhampton City Council","http://opendatacommunities.org/id/metropolitan-district-council/wolverhampton","710928","Yoo Recruit LTD","CWC1031716","2.25","Agency Staff","190545920","04/01/2019","Youth Offending","Youth Offending Team","R1100"
"Wolverhampton City Council","http://opendatacommunities.org/id/metropolitan-district-council/wolverhampton","710928","Yoo Recruit LTD","CWC1031725","627.10","Agency Staff","190545929","04/01/2019","Youth Offending","Youth Offending Team","R1100"
"Wolverhampton City Council","http://opendatacommunities.org/id/metropolitan-district-council/wolverhampton","710928","Yoo Recruit LTD","CWC1031737","310.25","Agency Staff","190545941","04/01/2019","Learning Disability Provider","Duke Street Bungalows","R1100"
"Wolverhampton City Council","http://opendatacommunities.org/id/metropolitan-district-council/wolverhampton","710928","Yoo Recruit LTD","CWC1031740","378.00","Agency Staff","190545944","04/01/2019","Learning Disability Provider","Duke Street Bungalows","R1100"
"Wolverhampton City Council","http://opendatacommunities.org/id/metropolitan-district-council/wolverhampton","710928","Yoo Recruit LTD","CWC1031736","246.90","Agency Staff","190545940","04/01/2019","Learning Disability Provider","Duke Street Bungalows","R1100"
"Wolverhampton City Council","http://opendatacommunities.org/id/metropolitan-district-council/wolverhampton","710928","Yoo Recruit LTD","CWC10317152","275.36","Agency Staff","190546056","04/01/2019","Leisure Services","Central Baths","R1100"
"Wolverhampton City Council","http://opendatacommunities.org/id/metropolitan-district-council/wolverhampton","710928","Yoo Recruit LTD","CWC10317150","219.95","Agency Staff","190546054","04/01/2019","Leisure Services","Central Baths","R1100"
"Wolverhampton City Council","http://opendatacommunities.org/id/metropolitan-district-council/wolverhampton","710928","Yoo Recruit LTD","CWC10317184","499.13","Agency Staff","190546088","04/01/2019","Customer Services","City Direct","R1100"
"Wolverhampton City Council","http://opendatacommunities.org/id/metropolitan-district-council/wolverhampton","710928","Yoo Recruit LTD","CWC10317153","289.29","Agency Staff","190546057","04/01/2019","Leisure Services","Central Baths","R1100"
"Wolverhampton City Council","http://opendatacommunities.org/id/metropolitan-district-council/wolverhampton","710928","Yoo Recruit LTD","CWC10317179","492.47","Agency Staff","190546083","04/01/2019","Customer Services","City Direct","R1100"
"Wolverhampton City Council","http://opendatacommunities.org/id/metropolitan-district-council/wolverhampton","710928","Yoo Recruit LTD","CWC10317122","353.25","Agency Staff","190546026","04/01/2019","Leisure Services","Bert Williams Leisure Centre","R1100"
"Wolverhampton City Council","http://opendatacommunities.org/id/metropolitan-district-council/wolverhampton","710928","Yoo Recruit LTD","CWC1031744","238.67","Agency Staff","190545948","04/01/2019","Learning Disability Provider","Ernest Bold Court","R1100"
"Wolverhampton City Council","http://opendatacommunities.org/id/metropolitan-district-council/wolverhampton","710928","Yoo Recruit LTD","CWC1031784","604.80","Agency Staff","190545988","04/01/2019","Older People Provider Services","Bradley Lodge Resource Centre","R1100"
"Wolverhampton City Council","http://opendatacommunities.org/id/metropolitan-district-council/wolverhampton","710928","Yoo Recruit LTD","CWC10317100","209.27","Agency Staff","190546004","04/01/2019","Leisure Services","Aldersley Leisure Village","R1100"
"Wolverhampton City Council","http://opendatacommunities.org/id/metropolitan-district-council/wolverhampton","710928","Yoo Recruit LTD","CWC10317125","522.99","Agency Staff","190546029","04/01/2019","Leisure Services","Bert Williams Leisure Centre","R1100"
"Wolverhampton City Council","http://opendatacommunities.org/id/metropolitan-district-council/wolverhampton","710928","Yoo Recruit LTD","CWC10317124","510.30","Agency Staff","190546028","04/01/2019","Leisure Services","Bert Williams Leisure Centre","R1100"
"Wolverhampton City Council","http://opendatacommunities.org/id/metropolitan-district-council/wolverhampton","710928","Yoo Recruit LTD","CWC10317123","399.30","Agency Staff","190546027","04/01/2019","Leisure Services","Bert Williams Leisure Centre","R1100"
"Wolverhampton City Council","http://opendatacommunities.org/id/metropolitan-district-council/wolverhampton","710928","Yoo Recruit LTD","CWC10317219","221.76","Agency Staff","190546123","04/01/2019","Cleaning","External Cleaning","R1100"
"Wolverhampton City Council","http://opendatacommunities.org/id/metropolitan-district-council/wolverhampton","710928","Yoo Recruit LTD","CWC10317220","268.62","Agency Staff","190546124","04/01/2019","Cleaning","External Cleaning","R1100"
"Wolverhampton City Council","http://opendatacommunities.org/id/metropolitan-district-council/wolverhampton","710928","Yoo Recruit LTD","CWC10317232","-2,377.50","Agency Staff","190546136","04/01/2019","Procurement Services","Corporate Procurement Unit","R1100"
"Wolverhampton City Council","http://opendatacommunities.org/id/metropolitan-district-council/wolverhampton","710928","Yoo Recruit LTD","CWC10317223","366.30","Agency Staff","190546127","04/01/2019","Cleaning","External Cleaning","R1100"
"Wolverhampton City Council","http://opendatacommunities.org/id/metropolitan-district-council/wolverhampton","710928","Yoo Recruit LTD","CWC10317222","301.44","Agency Staff","190546126","04/01/2019","Cleaning","External Cleaning","R1100"
"Wolverhampton City Council","http://opendatacommunities.org/id/metropolitan-district-council/wolverhampton","710928","Yoo Recruit LTD","CWC10317236","-2,377.50","Agency Staff","190546140","04/01/2019","Procurement Services","Corporate Procurement Unit","R1100"
"Wolverhampton City Council","http://opendatacommunities.org/id/metropolitan-district-council/wolverhampton","710928","Yoo Recruit LTD","CWC10317238","-1,426.50","Agency Staff","190546142","04/01/2019","Procurement Services","Corporate Procurement Unit","R1100"
"Wolverhampton City Council","http://opendatacommunities.org/id/metropolitan-district-council/wolverhampton","710928","Yoo Recruit LTD","CWC10317265","318.76","Agency Staff","190546169","04/01/2019","Markets","Shopmobility","R1100"
"Wolverhampton City Council","http://opendatacommunities.org/id/metropolitan-district-council/wolverhampton","710928","Yoo Recruit LTD","CWC10317261","575.46","Agency Staff","190546165","04/01/2019","Parking Services","Parking Enforcement","R1100"
"Wolverhampton City Council","http://opendatacommunities.org/id/metropolitan-district-council/wolverhampton","710928","Yoo Recruit LTD","CWC10317278","199.95","Agency Staff","190546182","04/01/2019","Visitor Economy","Education And Access","R1100"
"Wolverhampton City Council","http://opendatacommunities.org/id/metropolitan-district-council/wolverhampton","710928","Yoo Recruit LTD","CWC10317304","214.14","Agency Staff","190546208","04/01/2019","Adult Education","Education & Training","R1100"
"Wolverhampton City Council","http://opendatacommunities.org/id/metropolitan-district-council/wolverhampton","710928","Yoo Recruit LTD","CWC10317314","613.03","Agency Staff","190546218","04/01/2019","Adult Education","Communication Studies","R1100"
"Wolverhampton City Council","http://opendatacommunities.org/id/metropolitan-district-council/wolverhampton","710928","Yoo Recruit LTD","CWC10317313","525.45","Agency Staff","190546217","04/01/2019","Adult Education","Communication Studies","R1100"
"Wolverhampton City Council","http://opendatacommunities.org/id/metropolitan-district-council/wolverhampton","710928","Yoo Recruit LTD","CWC10317253","-916.30","Agency Staff","190546157","04/01/2019","Corporate Business Support","Corporate Programmes","R1100"
"Wolverhampton City Council","http://opendatacommunities.org/id/metropolitan-district-council/wolverhampton","710928","Yoo Recruit LTD","CWC10317291","413.90","Agency Staff","190546195","04/01/2019","Licensing","Licensing - Private Hire Vehicles","R1100"
"Wolverhampton City Council","http://opendatacommunities.org/id/metropolitan-district-council/wolverhampton","710928","Yoo Recruit LTD","CWC10317292","504.75","Agency Staff","190546196","04/01/2019","Licensing","Licensing - Private Hire Vehicles","R1100"
"Wolverhampton City Council","http://opendatacommunities.org/id/metropolitan-district-council/wolverhampton","710928","Yoo Recruit LTD","CWC10317284","371.79","Agency Staff","190546188","04/01/2019","Visitor Economy","The Little Civic","R1100"
"Wolverhampton City Council","http://opendatacommunities.org/id/metropolitan-district-council/wolverhampton","710928","Yoo Recruit LTD","CWC10317329","393.82","Agency Staff","190546233","04/01/2019","School Planning & Resources","Pupil & Student Support","R1100"
"Wolverhampton City Council","http://opendatacommunities.org/id/metropolitan-district-council/wolverhampton","710928","Yoo Recruit LTD","CWC1032911","72.45","Agency Staff","190550491","16/01/2019","Independent Living Service","Adaptations Team","R1100"
"Wolverhampton City Council","http://opendatacommunities.org/id/metropolitan-district-council/wolverhampton","710928","Yoo Recruit LTD","CWC103295","66.20","Agency Staff","190550485","16/01/2019","Youth Offending","Youth Offending Team","R1100"
"Wolverhampton City Council","http://opendatacommunities.org/id/metropolitan-district-council/wolverhampton","710928","Yoo Recruit LTD","CWC10329342","127.16","Agency Staff","190550822","16/01/2019","Visitor Economy","VEC - Casual & Agency Staff","R1100"
"Wolverhampton City Council","http://opendatacommunities.org/id/metropolitan-district-council/wolverhampton","710928","Yoo Recruit LTD","CWC1032921","121.88","Agency Staff","190550501","16/01/2019","Learning Disability Provider","Duke Street Bungalows","R1100"
"Wolverhampton City Council","http://opendatacommunities.org/id/metropolitan-district-council/wolverhampton","710928","Yoo Recruit LTD","CWC10329117","69.63","Agency Staff","190550597","16/01/2019","Leisure Services","Central Baths","R1100"
"Wolverhampton City Council","http://opendatacommunities.org/id/metropolitan-district-council/wolverhampton","710928","Yoo Recruit LTD","CWC10329116","331.90","Agency Staff","190550596","16/01/2019","Leisure Services","Central Baths","R1100"
"Wolverhampton City Council","http://opendatacommunities.org/id/metropolitan-district-council/wolverhampton","710928","Yoo Recruit LTD","CWC10329131","99.83","Agency Staff","190550611","16/01/2019","Customer Services","City Direct","R1100"
"Wolverhampton City Council","http://opendatacommunities.org/id/metropolitan-district-council/wolverhampton","710928","Yoo Recruit LTD","CWC10329147","81.48","Agency Staff","190550627","16/01/2019","Customer Services","City Direct","R1100"
"Wolverhampton City Council","http://opendatacommunities.org/id/metropolitan-district-council/wolverhampton","710928","Yoo Recruit LTD","CWC10329152","85.47","Agency Staff","190550632","16/01/2019","Cleaning","External Cleaning","R1100"
"Wolverhampton City Council","http://opendatacommunities.org/id/metropolitan-district-council/wolverhampton","710928","Yoo Recruit LTD","CWC10329197","483.39","Agency Staff","190550677","16/01/2019","Legal Services","Legal Services","R1100"
"Wolverhampton City Council","http://opendatacommunities.org/id/metropolitan-district-council/wolverhampton","710928","Yoo Recruit LTD","CWC10329178","683.75","Agency Staff","190550658","16/01/2019","Revenues & Benefits","Revenues","R1100"
"Wolverhampton City Council","http://opendatacommunities.org/id/metropolitan-district-council/wolverhampton","710928","Yoo Recruit LTD","CWC10329182","615.38","Agency Staff","190550662","16/01/2019","Revenues & Benefits","Revenues","R1100"
"Wolverhampton City Council","http://opendatacommunities.org/id/metropolitan-district-council/wolverhampton","710928","Yoo Recruit LTD","CWC10329212","137.40","Agency Staff","190550692","16/01/2019","Licensing","Licensing - Private Hire Vehicles","R1100"
"Wolverhampton City Council","http://opendatacommunities.org/id/metropolitan-district-council/wolverhampton","710928","Yoo Recruit LTD","CWC10329211","477.83","Agency Staff","190550691","16/01/2019","Licensing","Licensing - General","R1100"
"Wolverhampton City Council","http://opendatacommunities.org/id/metropolitan-district-council/wolverhampton","710928","Yoo Recruit LTD","CWC10329262","82.62","Agency Staff","190550742","16/01/2019","Leisure Services","WV Active Business Support","R1100"
"Wolverhampton City Council","http://opendatacommunities.org/id/metropolitan-district-council/wolverhampton","710928","Yoo Recruit LTD","CWC10329292","720.06","Agency Staff","190550772","16/01/2019","Strengthening Families","CP Area 3 - Graiseley","R1100"
"Wolverhampton City Council","http://opendatacommunities.org/id/metropolitan-district-council/wolverhampton","710928","Yoo Recruit LTD","CWC1032915","703.00","Agency Staff","190550495","16/01/2019","Adults Assessment & Care Management North","Learning Disabilities Assessment and Care Management","R1100"
"Wolverhampton City Council","http://opendatacommunities.org/id/metropolitan-district-council/wolverhampton","710928","Yoo Recruit LTD","CWC10329281","476.04","Agency Staff","190550761","16/01/2019","Strengthening Families","CP Area 2 - Bilston/Rocket Pool","R1100"
"Wolverhampton City Council","http://opendatacommunities.org/id/metropolitan-district-council/wolverhampton","710928","Yoo Recruit LTD","CWC10329341","74.76","Agency Staff","190550821","16/01/2019","Visitor Economy","VEC - Casual & Agency Staff","R1100"
"Wolverhampton City Council","http://opendatacommunities.org/id/metropolitan-district-council/wolverhampton","710928","Yoo Recruit LTD","CWC10329279","99.83","Agency Staff","190550759","16/01/2019","The Hub","Payroll/HR","R1100"
"Wolverhampton City Council","http://opendatacommunities.org/id/metropolitan-district-council/wolverhampton","710928","Yoo Recruit LTD","CWC1032936","582.00","Agency Staff","190550516","16/01/2019","Emergency Duty Team","Emergency Duty Team","R1100"
"Wolverhampton City Council","http://opendatacommunities.org/id/metropolitan-district-council/wolverhampton","710928","Yoo Recruit LTD","CWC1032939","86.52","Agency Staff","190550519","16/01/2019","Local Economy","Global Budgets","R1100"
"Wolverhampton City Council","http://opendatacommunities.org/id/metropolitan-district-council/wolverhampton","710928","Yoo Recruit LTD","CWC1032970","489.52","Agency Staff","190550550","16/01/2019","Adults Assessment & Care Management East","Hospital Team","R1100"
"Wolverhampton City Council","http://opendatacommunities.org/id/metropolitan-district-council/wolverhampton","710928","Yoo Recruit LTD","CWC1032965","683.38","Agency Staff","190550545","16/01/2019","Independent Living Service","Independent Living Service","R1100"
"Wolverhampton City Council","http://opendatacommunities.org/id/metropolitan-district-council/wolverhampton","710928","Yoo Recruit LTD","CWC1032990","66.65","Agency Staff","190550570","16/01/2019","Leisure Services","Bert Williams Leisure Centre","R1100"
"Wolverhampton City Council","http://opendatacommunities.org/id/metropolitan-district-council/wolverhampton","710928","Yoo Recruit LTD","CWC10329216","135.52","Agency Staff","190550696","16/01/2019","Adult Education","Admin & Support","R1100"
"Wolverhampton City Council","http://opendatacommunities.org/id/metropolitan-district-council/wolverhampton","710928","Yoo Recruit LTD","CWC10329214","535.04","Agency Staff","190550694","16/01/2019","Licensing","Licensing - Private Hire Vehicles","R1100"
"Wolverhampton City Council","http://opendatacommunities.org/id/metropolitan-district-council/wolverhampton","710928","Yoo Recruit LTD","CWC10329208","70.00","Agency Staff","190550688","16/01/2019","Licensing","Licensing - General","R1100"
"Wolverhampton City Council","http://opendatacommunities.org/id/metropolitan-district-council/wolverhampton","710928","Yoo Recruit LTD","CWC10329200","127.58","Agency Staff","190550680","16/01/2019","Visitor Economy","The Little Civic","R1100"
"Wolverhampton City Council","http://opendatacommunities.org/id/metropolitan-district-council/wolverhampton","710928","Yoo Recruit LTD","CWC10329220","73.26","Agency Staff","190550700","16/01/2019","Adult Education","Site Services","R1100"
"Wolverhampton City Council","http://opendatacommunities.org/id/metropolitan-district-council/wolverhampton","710928","Yoo Recruit LTD","CWC10329288","722.26","Agency Staff","190550768","16/01/2019","Strengthening Families","CP Area 2 - Bilston/Rocket Pool","R1100"
"Wolverhampton City Council","http://opendatacommunities.org/id/metropolitan-district-council/wolverhampton","710928","Yoo Recruit LTD","CWC10329252","502.46","Agency Staff","190550732","16/01/2019","Safeguarding","Head of Service Quality and Safeguarding","R1100"
"Wolverhampton City Council","http://opendatacommunities.org/id/metropolitan-district-council/wolverhampton","710928","Yoo Recruit LTD","CWC10333288","2,510.52","Agency Staff","190553522","23/01/2019","Housing","Private Sector Housing","R1100"
"Wolverhampton City Council","http://opendatacommunities.org/id/metropolitan-district-council/wolverhampton","710928","Yoo Recruit LTD","CWC10333300","751.47","Agency Staff","190553535","23/01/2019","Adult Education","Admin & Support","R1100"
"Wolverhampton City Council","http://opendatacommunities.org/id/metropolitan-district-council/wolverhampton","710928","Yoo Recruit LTD","CWC10333291","779.00","Agency Staff","190553525","23/01/2019","City Development","City Development  - Core Team","R1100"
"Wolverhampton City Council","http://opendatacommunities.org/id/metropolitan-district-council/wolverhampton","710928","Yoo Recruit LTD","CWC10333304","152.75","Agency Staff","190553538","23/01/2019","Adult Education","Site Services","R1100"
"Wolverhampton City Council","http://opendatacommunities.org/id/metropolitan-district-council/wolverhampton","710928","Yoo Recruit LTD","CWC10333251","251.23","Agency Staff","190553496","23/01/2019","ICTS","Customer Services","R1100"
"Wolverhampton City Council","http://opendatacommunities.org/id/metropolitan-district-council/wolverhampton","710928","Yoo Recruit LTD","CWC10333252","399.30","Agency Staff","190553497","23/01/2019","ICTS","Customer Services","R1100"
"Wolverhampton City Council","http://opendatacommunities.org/id/metropolitan-district-council/wolverhampton","710928","Yoo Recruit LTD","CWC10333246","396.83","Agency Staff","190553493","23/01/2019","Cleaning","External Cleaning","R1100"
"Wolverhampton City Council","http://opendatacommunities.org/id/metropolitan-district-council/wolverhampton","710928","Yoo Recruit LTD","CWC10333273","429.10","Agency Staff","190553511","23/01/2019","Markets","Shopmobility","R1100"
"Wolverhampton City Council","http://opendatacommunities.org/id/metropolitan-district-council/wolverhampton","710928","Yoo Recruit LTD","CWC10333272","67.43","Agency Staff","190553508","23/01/2019","Markets","Shopmobility","R1100"
"Wolverhampton City Council","http://opendatacommunities.org/id/metropolitan-district-council/wolverhampton","710928","Yoo Recruit LTD","CWC10333274","285.05","Agency Staff","190553510","23/01/2019","Markets","Shopmobility","R1100"
"Wolverhampton City Council","http://opendatacommunities.org/id/metropolitan-district-council/wolverhampton","710928","Yoo Recruit LTD","CWC10333278","178.64","Agency Staff","190553514","23/01/2019","Public Service Reform","Workforce Development Team","R1100"
"Wolverhampton City Council","http://opendatacommunities.org/id/metropolitan-district-council/wolverhampton","710928","Yoo Recruit LTD","CWC10333317","178.45","Agency Staff","190553551","23/01/2019","Adult Education","Communication Studies","R1100"
"Wolverhampton City Council","http://opendatacommunities.org/id/metropolitan-district-council/wolverhampton","710928","Yoo Recruit LTD","CWC10333315","267.68","Agency Staff","190553549","23/01/2019","Adult Education","Access & FE","R1100"
"Wolverhampton City Council","http://opendatacommunities.org/id/metropolitan-district-council/wolverhampton","710928","Yoo Recruit LTD","CWC10333324","131.88","Agency Staff","190553557","23/01/2019","Adult Education","Learner Services","R1100"
"Wolverhampton City Council","http://opendatacommunities.org/id/metropolitan-district-council/wolverhampton","710928","Yoo Recruit LTD","CWC10333321","613.03","Agency Staff","190553554","23/01/2019","Adult Education","Communication Studies","R1100"
"Wolverhampton City Council","http://opendatacommunities.org/id/metropolitan-district-council/wolverhampton","710928","Yoo Recruit LTD","CWC10333390","27.55","Agency Staff","190553601","23/01/2019","Leisure Services","WV Active Business Support","R1100"
"Wolverhampton City Council","http://opendatacommunities.org/id/metropolitan-district-council/wolverhampton","710928","Yoo Recruit LTD","CWC10333382","56.26","Agency Staff","190553603","23/01/2019","Leisure Services","WV Active Business Support","R1100"
"Wolverhampton City Council","http://opendatacommunities.org/id/metropolitan-district-council/wolverhampton","710928","Yoo Recruit LTD","CWC10333349","48.84","Agency Staff","190553571","23/01/2019","Special Educational Needs","Special - Transport","R1100"
"Wolverhampton City Council","http://opendatacommunities.org/id/metropolitan-district-council/wolverhampton","710928","Yoo Recruit LTD","CWC10333358","195.36","Agency Staff","190553578","23/01/2019","Special Educational Needs","Special - Transport","R1100"
"Wolverhampton City Council","http://opendatacommunities.org/id/metropolitan-district-council/wolverhampton","710928","Yoo Recruit LTD","CWC10333397","246.24","Agency Staff","190553618","23/01/2019","The Hub","Payroll/HR","R1100"
"Wolverhampton City Council","http://opendatacommunities.org/id/metropolitan-district-council/wolverhampton","710928","Yoo Recruit LTD","CWC10333383","313.28","Agency Staff","190553613","23/01/2019","Leisure Services","WV Active Business Support","R1100"
"Wolverhampton City Council","http://opendatacommunities.org/id/metropolitan-district-council/wolverhampton","710928","Yoo Recruit LTD","CWC10333421","11.43","Agency Staff","190553644","23/01/2019","Strengthening Families","CP Area 3 - Graiseley","R1100"
"Wolverhampton City Council","http://opendatacommunities.org/id/metropolitan-district-council/wolverhampton","710928","Yoo Recruit LTD","CWC10333404","2.88","Agency Staff","190553624","23/01/2019","Strengthening Families","CP Area 2 - Bilston/Rocket Pool","R1100"
"Wolverhampton City Council","http://opendatacommunities.org/id/metropolitan-district-council/wolverhampton","710928","Yoo Recruit LTD","CWC10333410","-1,214.71","Agency Staff","190553627","23/01/2019","Strengthening Families","CP Area 3 - Graiseley","R1100"
"Wolverhampton City Council","http://opendatacommunities.org/id/metropolitan-district-council/wolverhampton","710928","Yoo Recruit LTD","CWC10333414","-1,214.71","Agency Staff","190553631","23/01/2019","Strengthening Families","CP Area 3 - Graiseley","R1100"
"Wolverhampton City Council","http://opendatacommunities.org/id/metropolitan-district-council/wolverhampton","710928","Yoo Recruit LTD","CWC10333403","968.49","Agency Staff","190553625","23/01/2019","Strengthening Families","CP Area 2 - Bilston/Rocket Pool","R1100"
"Wolverhampton City Council","http://opendatacommunities.org/id/metropolitan-district-council/wolverhampton","710928","Yoo Recruit LTD","CWC10333429","-3.00","Agency Staff","190553640","23/01/2019","Strengthening Families","CP Area 3 - Graiseley","R1100"
"Wolverhampton City Council","http://opendatacommunities.org/id/metropolitan-district-council/wolverhampton","710928","Yoo Recruit LTD","CWC10333406","1,239.13","Agency Staff","190553650","23/01/2019","Strengthening Families","CP Area 3 - Graiseley","R1100"
"Wolverhampton City Council","http://opendatacommunities.org/id/metropolitan-district-council/wolverhampton","710928","Yoo Recruit LTD","CWC10333445","38.65","Agency Staff","190553666","23/01/2019","Strengthening Families","EI Area 1- Eastfield","R1100"
"Wolverhampton City Council","http://opendatacommunities.org/id/metropolitan-district-council/wolverhampton","710928","Yoo Recruit LTD","CWC10333438","33.75","Agency Staff","190553651","23/01/2019","Strengthening Families","CP Area 4- Bingley","R1100"
"Wolverhampton City Council","http://opendatacommunities.org/id/metropolitan-district-council/wolverhampton","710928","Yoo Recruit LTD","CWC10333433","1,214.71","Agency Staff","190553658","23/01/2019","Strengthening Families","CP Area 4- Bingley","R1100"
"Wolverhampton City Council","http://opendatacommunities.org/id/metropolitan-district-council/wolverhampton","710928","Yoo Recruit LTD","CWC10333465","1,402.30","Agency Staff","190553691","23/01/2019","Adults Assessment & Care Management SLC","Supporting Life Choices","R1100"
"Wolverhampton City Council","http://opendatacommunities.org/id/metropolitan-district-council/wolverhampton","710928","Yoo Recruit LTD","CWC10333454","689.32","Agency Staff","190553675","23/01/2019","Enterprise","AIM for the Black Country shared costs","R1100"
"Wolverhampton City Council","http://opendatacommunities.org/id/metropolitan-district-council/wolverhampton","710928","Yoo Recruit LTD","CWC10333478","3,091.30","Agency Staff","190553696","23/01/2019","Digital Transformation Programme","Digital Transformation Programme (Recharge to Capital)","R1100"
"Wolverhampton City Council","http://opendatacommunities.org/id/metropolitan-district-council/wolverhampton","710928","Yoo Recruit LTD","CWC10333474","3,238.15","Agency Staff","190553697","23/01/2019","Digital Transformation Programme","Digital Transformation Programme (Recharge to Capital)","R1100"
"Wolverhampton City Council","http://opendatacommunities.org/id/metropolitan-district-council/wolverhampton","710928","Yoo Recruit LTD","CWC1033328","50.40","Agency Staff","190553288","23/01/2019","Children & Young People In Care","Looked After Team 2","R1100"
"Wolverhampton City Council","http://opendatacommunities.org/id/metropolitan-district-council/wolverhampton","710928","Yoo Recruit LTD","CWC103333","738.68","Agency Staff","190553275","23/01/2019","Children & Young People In Care","Adoption and Residence Team & Allowances","R1100"
"Wolverhampton City Council","http://opendatacommunities.org/id/metropolitan-district-council/wolverhampton","710928","Yoo Recruit LTD","CWC1033341","155.12","Agency Staff","190553309","23/01/2019","Learning Disability Provider","Duke Street Bungalows","R1100"
"Wolverhampton City Council","http://opendatacommunities.org/id/metropolitan-district-council/wolverhampton","710928","Yoo Recruit LTD","CWC1033342","121.88","Agency Staff","190553306","23/01/2019","Learning Disability Provider","Duke Street Bungalows","R1100"
"Wolverhampton City Council","http://opendatacommunities.org/id/metropolitan-district-council/wolverhampton","710928","Yoo Recruit LTD","CWC1033370","148.32","Agency Staff","190553335","23/01/2019","Local Economy","Global Budgets","R1100"
"Wolverhampton City Council","http://opendatacommunities.org/id/metropolitan-district-council/wolverhampton","710928","Yoo Recruit LTD","CWC1033363","142.99","Agency Staff","190553328","23/01/2019","Local Economy","Blakenhall Community & Healthy Living Centre","R1100"
"Wolverhampton City Council","http://opendatacommunities.org/id/metropolitan-district-council/wolverhampton","710928","Yoo Recruit LTD","CWC1033372","125.10","Agency Staff","190553334","23/01/2019","Local Economy","Global Budgets","R1100"
"Wolverhampton City Council","http://opendatacommunities.org/id/metropolitan-district-council/wolverhampton","710928","Yoo Recruit LTD","CWC1033368","197.76","Agency Staff","190553336","23/01/2019","Local Economy","Global Budgets","R1100"
"Wolverhampton City Council","http://opendatacommunities.org/id/metropolitan-district-council/wolverhampton","710928","Yoo Recruit LTD","CWC1033365","24.72","Agency Staff","190553329","23/01/2019","Local Economy","Global Budgets","R1100"
"Wolverhampton City Council","http://opendatacommunities.org/id/metropolitan-district-council/wolverhampton","710928","Yoo Recruit LTD","CWC1033386","296.28","Agency Staff","190553349","23/01/2019","Older People Provider Services","Bradley Lodge Resource Centre","R1100"
"Wolverhampton City Council","http://opendatacommunities.org/id/metropolitan-district-council/wolverhampton","710928","Yoo Recruit LTD","CWC10333124","31.09","Agency Staff","190553373","23/01/2019","Leisure Services","Aldersley Leisure Village","R1100"
"Wolverhampton City Council","http://opendatacommunities.org/id/metropolitan-district-council/wolverhampton","710928","Yoo Recruit LTD","CWC10333126","46.10","Agency Staff","190553375","23/01/2019","Leisure Services","Aldersley Leisure Village","R1100"
"Wolverhampton City Council","http://opendatacommunities.org/id/metropolitan-district-council/wolverhampton","710928","Yoo Recruit LTD","CWC1033393","31.77","Agency Staff","190553374","23/01/2019","Leisure Services","Aldersley Leisure Village","R1100"
"Wolverhampton City Council","http://opendatacommunities.org/id/metropolitan-district-council/wolverhampton","710928","Yoo Recruit LTD","CWC10333103","31.09","Agency Staff","190553367","23/01/2019","Leisure Services","Aldersley Leisure Village","R1100"
"Wolverhampton City Council","http://opendatacommunities.org/id/metropolitan-district-council/wolverhampton","710928","Yoo Recruit LTD","CWC10333117","31.09","Agency Staff","190553369","23/01/2019","Leisure Services","Aldersley Leisure Village","R1100"
"Wolverhampton City Council","http://opendatacommunities.org/id/metropolitan-district-council/wolverhampton","710928","Yoo Recruit LTD","CWC10333135","429.12","Agency Staff","190553397","23/01/2019","Leisure Services","Bert Williams Leisure Centre","R1100"
"Wolverhampton City Council","http://opendatacommunities.org/id/metropolitan-district-council/wolverhampton","710928","Yoo Recruit LTD","CWC10333136","286.17","Agency Staff","190553394","23/01/2019","Leisure Services","Bert Williams Leisure Centre","R1100"
"Wolverhampton City Council","http://opendatacommunities.org/id/metropolitan-district-council/wolverhampton","710928","Yoo Recruit LTD","CWC10333153","179.96","Agency Staff","190553405","23/01/2019","Leisure Services","Central Baths","R1100"
"Wolverhampton City Council","http://opendatacommunities.org/id/metropolitan-district-council/wolverhampton","710928","Yoo Recruit LTD","CWC10333199","97.76","Agency Staff","190553455","23/01/2019","Cleaning","Cleaning of Buildings - General","R1100"
"Wolverhampton City Council","http://opendatacommunities.org/id/metropolitan-district-council/wolverhampton","710928","Yoo Recruit LTD","CWC10333228","168.21","Agency Staff","190553472","23/01/2019","Cleaning","Cleaning of Buildings - General","R1100"
"Wolverhampton City Council","http://opendatacommunities.org/id/metropolitan-district-council/wolverhampton","710928","Yoo Recruit LTD","CWC10333204","183.30","Agency Staff","190553474","23/01/2019","Cleaning","Cleaning of Buildings - General","R1100"
"Wolverhampton City Council","http://opendatacommunities.org/id/metropolitan-district-council/wolverhampton","710928","Yoo Recruit LTD","CWC10333169","209.14","Agency Staff","190553421","23/01/2019","Catering","Education Catering - General Overheads","R1100"
"Wolverhampton City Council","http://opendatacommunities.org/id/metropolitan-district-council/wolverhampton","710928","Yoo Recruit LTD","CWC10333226","186.90","Agency Staff","190553477","23/01/2019","Cleaning","Cleaning of Buildings - General","R1100"
"Wolverhampton City Council","http://opendatacommunities.org/id/metropolitan-district-council/wolverhampton","710928","Yoo Recruit LTD","CWC10333209","146.64","Agency Staff","190553466","23/01/2019","Cleaning","Cleaning of Buildings - General","R1100"
"Wolverhampton City Council","http://opendatacommunities.org/id/metropolitan-district-council/wolverhampton","710928","Yoo Recruit LTD","CWC10333186","493.21","Agency Staff","190553438","23/01/2019","Customer Services","City Direct","R1100"
"Wolverhampton City Council","http://opendatacommunities.org/id/metropolitan-district-council/wolverhampton","710928","Yoo Recruit LTD","CWC10333235","152.75","Agency Staff","190553471","23/01/2019","Cleaning","Cleaning of Buildings - General","R1100"
"Wolverhampton City Council","http://opendatacommunities.org/id/metropolitan-district-council/wolverhampton","710928","Yoo Recruit LTD","CWC10333189","667.84","Agency Staff","190553446","23/01/2019","Customer Services","City Direct","R1100"
"Wolverhampton City Council","http://opendatacommunities.org/id/metropolitan-district-council/wolverhampton","710928","Yoo Recruit LTD","CWC10333222","119.15","Agency Staff","190553461","23/01/2019","Cleaning","Cleaning of Buildings - General","R1100"
"Wolverhampton City Council","http://opendatacommunities.org/id/metropolitan-district-council/wolverhampton","710928","Yoo Recruit LTD","CWC10317444","33.45","Agency Staff","190546348","04/01/2019","Strengthening Families","EI Area 4 - Bingley","R1100"
"Wolverhampton City Council","http://opendatacommunities.org/id/metropolitan-district-council/wolverhampton","710928","Yoo Recruit LTD","CWC10317439","31.40","Agency Staff","190546343","04/01/2019","Strengthening Families","EI Area 3 - Graiseley","R1100"
"Wolverhampton City Council","http://opendatacommunities.org/id/metropolitan-district-council/wolverhampton","710928","Yoo Recruit LTD","CWC103296","718.87","Agency Staff","190550486","16/01/2019","Youth Offending","Youth Offending Team","R1100"
"Wolverhampton City Council","http://opendatacommunities.org/id/metropolitan-district-council/wolverhampton","710928","Yoo Recruit LTD","CWC1032910","72.00","Agency Staff","190550490","16/01/2019","Independent Living Service","Adaptations Team","R1100"
"Wolverhampton City Council","http://opendatacommunities.org/id/metropolitan-district-council/wolverhampton","710928","Yoo Recruit LTD","CWC10329273","334.62","Agency Staff","190550753","16/01/2019","Human Resources","HR Investigations","R1100"
"Wolverhampton City Council","http://opendatacommunities.org/id/metropolitan-district-council/wolverhampton","710928","Yoo Recruit LTD","CWC10329269","84.39","Agency Staff","190550749","16/01/2019","Leisure Services","WV Active Business Support","R1100"
"Wolverhampton City Council","http://opendatacommunities.org/id/metropolitan-district-council/wolverhampton","710928","Yoo Recruit LTD","CWC10329345","87.22","Agency Staff","190550825","16/01/2019","Visitor Economy","VEC - Casual & Agency Staff","R1100"
"Wolverhampton City Council","http://opendatacommunities.org/id/metropolitan-district-council/wolverhampton","710928","Yoo Recruit LTD","CWC1032919","487.50","Agency Staff","190550499","16/01/2019","Learning Disability Provider","Duke Street Bungalows","R1100"
"Wolverhampton City Council","http://opendatacommunities.org/id/metropolitan-district-council/wolverhampton","710928","Yoo Recruit LTD","CWC1032920","633.75","Agency Staff","190550500","16/01/2019","Learning Disability Provider","Duke Street Bungalows","R1100"
"Wolverhampton City Council","http://opendatacommunities.org/id/metropolitan-district-council/wolverhampton","710928","Yoo Recruit LTD","CWC10329118","73.86","Agency Staff","190550598","16/01/2019","Leisure Services","Central Baths","R1100"
"Wolverhampton City Council","http://opendatacommunities.org/id/metropolitan-district-council/wolverhampton","710928","Yoo Recruit LTD","CWC10329121","91.49","Agency Staff","190550601","16/01/2019","Leisure Services","Central Baths","R1100"
"Wolverhampton City Council","http://opendatacommunities.org/id/metropolitan-district-council/wolverhampton","710928","Yoo Recruit LTD","CWC1032964","471.63","Agency Staff","190550544","16/01/2019","Independent Living Service","Independent Living Service","R1100"
"Wolverhampton City Council","http://opendatacommunities.org/id/metropolitan-district-council/wolverhampton","710928","Yoo Recruit LTD","CWC1032975","480.09","Agency Staff","190550555","16/01/2019","Leisure Services","WV Active Catering","R1100"
"Wolverhampton City Council","http://opendatacommunities.org/id/metropolitan-district-council/wolverhampton","710928","Yoo Recruit LTD","CWC1032981","92.40","Agency Staff","190550561","16/01/2019","Leisure Services","Aldersley Leisure Village","R1100"
"Wolverhampton City Council","http://opendatacommunities.org/id/metropolitan-district-council/wolverhampton","710928","Yoo Recruit LTD","CWC10329177","685.03","Agency Staff","190550657","16/01/2019","Waste and Recycling Service","Waste Collection and Recycling Service - General","R1100"
"Wolverhampton City Council","http://opendatacommunities.org/id/metropolitan-district-council/wolverhampton","710928","Yoo Recruit LTD","CWC10329159","138.16","Agency Staff","190550639","16/01/2019","Cleaning","External Cleaning","R1100"
"Wolverhampton City Council","http://opendatacommunities.org/id/metropolitan-district-council/wolverhampton","710928","Yoo Recruit LTD","CWC10329257","126.60","Agency Staff","190550737","16/01/2019","Public Service Reform","Management Trainee Programme","R1100"
"Wolverhampton City Council","http://opendatacommunities.org/id/metropolitan-district-council/wolverhampton","710948","Formkraft LTD","0000192960","139.40","Equipment - Purchase","130237738","02/01/2019","Leisure Services","Bert Williams Leisure Centre","R4000"
"Wolverhampton City Council","http://opendatacommunities.org/id/metropolitan-district-council/wolverhampton","710948","Formkraft LTD","0000185061A","135.00","Equipment - Purchase","130239155","02/01/2019","Leisure Services","Bert Williams Leisure Centre","R4000"
"Wolverhampton City Council","http://opendatacommunities.org/id/metropolitan-district-council/wolverhampton","710948","Formkraft LTD","0000185061","135.00","Computing - Consumables","130232671","16/01/2019","Leisure Services","Bert Williams Leisure Centre","R4532"
"Wolverhampton City Council","http://opendatacommunities.org/id/metropolitan-district-council/wolverhampton","710968","Something Different (UK)","20691","281.00","Marketing \ Non-staff advertising","130239003","16/01/2019","Central Corporate Budgets","Miscellaneous Corporate Costs","R4317"
"Wolverhampton City Council","http://opendatacommunities.org/id/metropolitan-district-council/wolverhampton","710968","Something Different (UK)","20672","187.00","Equipment - Purchase","130238695","16/01/2019","Customer Services","City Direct","R4000"
"Wolverhampton City Council","http://opendatacommunities.org/id/metropolitan-district-council/wolverhampton","710968","Something Different (UK)","20700","649.00","Marketing \ Non-staff advertising","130240147","25/01/2019","Housing","Wholly Owned Company - Operations","R4317"
"Wolverhampton City Council","http://opendatacommunities.org/id/metropolitan-district-council/wolverhampton","710968","Something Different (UK)","20634","906.03","Marketing \ Non-staff advertising","130238055","09/01/2019","Markets","Wolverhampton Indoor and Open Market","R4317"
"Wolverhampton City Council","http://opendatacommunities.org/id/metropolitan-district-council/wolverhampton","710968","Something Different (UK)","20634","1,012.97","Marketing \ Non-staff advertising","130238055","09/01/2019","Markets","Bilston Market and Licensed Operations","R4317"
"Wolverhampton City Council","http://opendatacommunities.org/id/metropolitan-district-council/wolverhampton","710972","Berrybrook /Perry Hall Multi-Academy Trust","TFT Spring 2019 Inst 1","3,961.44","TPP - Private Nursery Education Funding","190553192","23/01/2019","Early Years","Early Years Entitlement Funding for Disadvantaged 2 Year Olds","R5035"
"Wolverhampton City Council","http://opendatacommunities.org/id/metropolitan-district-council/wolverhampton","710994","Bemrosebooth Paragon","465874","2,891.25","Stationery","130238696","16/01/2019","Parking Services","On Street Parking","R4308"
"Wolverhampton City Council","http://opendatacommunities.org/id/metropolitan-district-council/wolverhampton","711006","Children United Ltd","13112B","142.50","TPP - Child Care provided for client","130241303","30/01/2019","Adult Education","Discretionary Fund","R5034"
"Wolverhampton City Council","http://opendatacommunities.org/id/metropolitan-district-council/wolverhampton","711006","Children United Ltd","13112D","114.00","TPP - Child Care provided for client","130241305","30/01/2019","Adult Education","Discretionary Fund","R5034"
"Wolverhampton City Council","http://opendatacommunities.org/id/metropolitan-district-council/wolverhampton","711006","Children United Ltd","13101E","105.00","TPP - Child Care provided for client","130238302","09/01/2019","Adult Education","Discretionary Fund","R5034"
"Wolverhampton City Council","http://opendatacommunities.org/id/metropolitan-district-council/wolverhampton","711006","Children United Ltd","13112C","114.00","TPP - Child Care provided for client","130241304","30/01/2019","Adult Education","Discretionary Fund","R5034"
"Wolverhampton City Council","http://opendatacommunities.org/id/metropolitan-district-council/wolverhampton","711006","Children United Ltd","13112A","57.00","TPP - Child Care provided for client","130241302","30/01/2019","Adult Education","Discretionary Fund","R5034"
"Wolverhampton City Council","http://opendatacommunities.org/id/metropolitan-district-council/wolverhampton","711006","Children United Ltd","13101A","110.00","TPP - Child Care provided for client","130238299","09/01/2019","Adult Education","Discretionary Fund","R5034"
"Wolverhampton City Council","http://opendatacommunities.org/id/metropolitan-district-council/wolverhampton","711006","Children United Ltd","13101F","120.00","TPP - Child Care provided for client","130238303","09/01/2019","Adult Education","Discretionary Fund","R5034"
"Wolverhampton City Council","http://opendatacommunities.org/id/metropolitan-district-council/wolverhampton","711006","Children United Ltd","13101D","150.00","TPP - Child Care provided for client","130238301","09/01/2019","Adult Education","Discretionary Fund","R5034"
"Wolverhampton City Council","http://opendatacommunities.org/id/metropolitan-district-council/wolverhampton","711006","Children United Ltd","13101C","27.50","TPP - Child Care provided for client","130238300","09/01/2019","Adult Education","Discretionary Fund","R5034"
"Wolverhampton City Council","http://opendatacommunities.org/id/metropolitan-district-council/wolverhampton","711008","Stephanie Moore","NEF Spring 2019 INST 1","3,213.00","TPP - Private Nursery Education Funding","190553185","23/01/2019","Early Years","Early Years Universal Entitlement for 3 and 4 Year Olds","R5035"
"Wolverhampton City Council","http://opendatacommunities.org/id/metropolitan-district-council/wolverhampton","711010","Network Ventures Ltd","076V172942","2,500.00","Agency Staff","130239004","16/01/2019","Corporate Business Support","Corporate Programmes","R1100"
"Wolverhampton City Council","http://opendatacommunities.org/id/metropolitan-district-council/wolverhampton","711010","Network Ventures Ltd","076V172949","2,275.00","Services - Professional Fees","130239005","16/01/2019","ICTS","Strategic ICTS (ICT Service Budget)","R4400"
"Wolverhampton City Council","http://opendatacommunities.org/id/metropolitan-district-council/wolverhampton","711010","Network Ventures Ltd","076V172880","3,185.00","Services - Professional Fees","130238793","09/01/2019","ICTS","Strategic ICTS (ICT Service Budget)","R4400"
"Wolverhampton City Council","http://opendatacommunities.org/id/metropolitan-district-council/wolverhampton","711010","Network Ventures Ltd","076V172873","875.00","Agency Staff","130238792","09/01/2019","Corporate Business Support","Corporate Programmes","R1100"
"Wolverhampton City Council","http://opendatacommunities.org/id/metropolitan-district-council/wolverhampton","711010","Network Ventures Ltd","076V172873","1,625.00","Agency Staff","130238792","09/01/2019","Corporate Business Support","Corporate Programmes","R1100"
"Wolverhampton City Council","http://opendatacommunities.org/id/metropolitan-district-council/wolverhampton","711010","Network Ventures Ltd","076v172870","1,725.00","Services - Professional Fees","190555179","30/01/2019","ICTS","Strategic ICTS (ICT Service Budget)","R4400"
"Wolverhampton City Council","http://opendatacommunities.org/id/metropolitan-district-council/wolverhampton","711010","Network Ventures Ltd","076v172577","1,725.00","Services - Professional Fees","190555175","30/01/2019","ICTS","Strategic ICTS (ICT Service Budget)","R4400"
"Wolverhampton City Council","http://opendatacommunities.org/id/metropolitan-district-council/wolverhampton","711010","Network Ventures Ltd","076v172795","1,725.00","Services - Professional Fees","190555178","30/01/2019","ICTS","Strategic ICTS (ICT Service Budget)","R4400"
"Wolverhampton City Council","http://opendatacommunities.org/id/metropolitan-district-council/wolverhampton","711010","Network Ventures Ltd","076v172423","1,552.50","Services - Professional Fees","190555173","30/01/2019","ICTS","Strategic ICTS (ICT Service Budget)","R4400"
"Wolverhampton City Council","http://opendatacommunities.org/id/metropolitan-district-council/wolverhampton","711010","Network Ventures Ltd","076v172949u","887.33","Services - Professional Fees","130241593","30/01/2019","ICTS","Strategic ICTS (ICT Service Budget)","R4400"
"Wolverhampton City Council","http://opendatacommunities.org/id/metropolitan-district-council/wolverhampton","711010","Network Ventures Ltd","076V172805","2,957.50","Services - Professional Fees","130238057","02/01/2019","ICTS","Strategic ICTS (ICT Service Budget)","R4400"
"Wolverhampton City Council","http://opendatacommunities.org/id/metropolitan-district-council/wolverhampton","711010","Network Ventures Ltd","076v172504","1,725.00","Services - Professional Fees","190555174","30/01/2019","ICTS","Strategic ICTS (ICT Service Budget)","R4400"
"Wolverhampton City Council","http://opendatacommunities.org/id/metropolitan-district-council/wolverhampton","711010","Network Ventures Ltd","076V172798","2,500.00","Agency Staff","130238056","02/01/2019","Corporate Business Support","Corporate Programmes","R1100"
"Wolverhampton City Council","http://opendatacommunities.org/id/metropolitan-district-council/wolverhampton","711010","Network Ventures Ltd","076v172723","1,725.00","Services - Professional Fees","190555177","30/01/2019","ICTS","Strategic ICTS (ICT Service Budget)","R4400"
"Wolverhampton City Council","http://opendatacommunities.org/id/metropolitan-district-council/wolverhampton","711010","Network Ventures Ltd","076v172651","1,725.00","Services - Professional Fees","190555176","30/01/2019","ICTS","Strategic ICTS (ICT Service Budget)","R4400"
"Wolverhampton City Council","http://opendatacommunities.org/id/metropolitan-district-council/wolverhampton","711010","Network Ventures Ltd","076v172939","1,725.00","Services - Professional Fees","190555180","30/01/2019","ICTS","Strategic ICTS (ICT Service Budget)","R4400"
"Wolverhampton City Council","http://opendatacommunities.org/id/metropolitan-district-council/wolverhampton","711015","The OT Practice","INV-014631","4,272.75","TPP - Social Care Support Services","130239072","18/01/2019","Safeguarding","MCA General","R5501"
"Wolverhampton City Council","http://opendatacommunities.org/id/metropolitan-district-council/wolverhampton","711025","Alere Toxicology","0000635481","113.75","Services - Professional Fees","130237923","09/01/2019","Legal Services","Centralised External Legal Costs","R4400"
"Wolverhampton City Council","http://opendatacommunities.org/id/metropolitan-district-council/wolverhampton","711055","Traffic Enforcement CCC Business Centre","City of Wolverhampton Council ~ January 2019","10,000.00","Services - Fees and Charges","190549678","16/01/2019","Parking Services","Parking Enforcement","R4401"
"Wolverhampton City Council","http://opendatacommunities.org/id/metropolitan-district-council/wolverhampton","711070","DWF LLP","2014568","6,012.00","Acquisition of Land and Buildings","130239910","23/01/2019","-","Wolverhampton Interchange Block 10 Development","C1000"
"Wolverhampton City Council","http://opendatacommunities.org/id/metropolitan-district-council/wolverhampton","711070","DWF LLP","101-2027732","9,294.50","Acquisition of Land and Buildings","130239909","23/01/2019","-","Wolverhampton Interchange Block 10 Development","C1000"
"Wolverhampton City Council","http://opendatacommunities.org/id/metropolitan-district-council/wolverhampton","711074","Handicare","SIN615027","316.00","Equipment - Purchase","130239606","16/01/2019","Older People Provider Services","ILS Stores","R4000"
"Wolverhampton City Council","http://opendatacommunities.org/id/metropolitan-district-council/wolverhampton","711074","Handicare","SIN615417","47.00","Equipment - Purchase","130239607","30/01/2019","Older People Provider Services","ILS Stores","R4000"
"Wolverhampton City Council","http://opendatacommunities.org/id/metropolitan-district-council/wolverhampton","711078","IHBC Enterprises Ltd","JIC1280/19","450.00","Marketing \ Non-staff advertising","130240029","30/01/2019","Planning","Planning","R4317"
"Wolverhampton City Council","http://opendatacommunities.org/id/metropolitan-district-council/wolverhampton","711094","OTS","0000025861","749.80","Equipment - Purchase","130238697","09/01/2019","Older People Provider Services","ILS Stores","R4000"
"Wolverhampton City Council","http://opendatacommunities.org/id/metropolitan-district-council/wolverhampton","711094","OTS","0000025969","335.00","Equipment - Purchase","130239073","16/01/2019","Older People Provider Services","ILS Stores","R4000"
"Wolverhampton City Council","http://opendatacommunities.org/id/metropolitan-district-council/wolverhampton","711118","ShredPro","P25984","416.50","TPP - Waste Disposal","130240331","23/01/2019","Facilities Management","Civic Centre","R5003"
"Wolverhampton City Council","http://opendatacommunities.org/id/metropolitan-district-council/wolverhampton","711118","ShredPro","P24078","6.00","TPP - Waste Disposal","130236131","23/01/2019","Facilities Management","Civic Centre","R5003"
"Wolverhampton City Council","http://opendatacommunities.org/id/metropolitan-district-council/wolverhampton","711118","ShredPro","P26158","354.50","TPP - Waste Disposal","130241184","23/01/2019","Facilities Management","Civic Centre","R5003"
"Wolverhampton City Council","http://opendatacommunities.org/id/metropolitan-district-council/wolverhampton","711118","ShredPro","P26519","326.50","TPP - Waste Disposal","130241185","23/01/2019","Facilities Management","Civic Centre","R5003"
"Wolverhampton City Council","http://opendatacommunities.org/id/metropolitan-district-council/wolverhampton","711118","ShredPro","P25985","121.50","TPP - Waste Disposal","130240332","23/01/2019","Facilities Management","Civic Centre","R5003"
"Wolverhampton City Council","http://opendatacommunities.org/id/metropolitan-district-council/wolverhampton","711118","ShredPro","P25578","40.00","TPP - Waste Disposal","130239441","18/01/2019","Facilities Management","Civic Centre","R5003"
"Wolverhampton City Council","http://opendatacommunities.org/id/metropolitan-district-council/wolverhampton","711135","Hindley Contractors LTD","17/0426/DFG","9,665.12","Grants paid out to other organisations","190546740","09/01/2019","-","Disabled Facilities Grants","C5011"
"Wolverhampton City Council","http://opendatacommunities.org/id/metropolitan-district-council/wolverhampton","711135","Hindley Contractors LTD","17/0642/DFG","4,610.00","Grants paid out to other organisations","190551228","16/01/2019","-","Disabled Facilities Grants","C5011"
"Wolverhampton City Council","http://opendatacommunities.org/id/metropolitan-district-council/wolverhampton","711135","Hindley Contractors LTD","17/0018/DFG","10,438.88","Grants paid out to other organisations","190555837","30/01/2019","-","Disabled Facilities Grants","C5011"
"Wolverhampton City Council","http://opendatacommunities.org/id/metropolitan-district-council/wolverhampton","711135","Hindley Contractors LTD","17/0018/DFGa.","3,840.00","Grants paid out to other organisations","190555837","30/01/2019","-","Disabled Facilities Grants","C5011"
"Wolverhampton City Council","http://opendatacommunities.org/id/metropolitan-district-council/wolverhampton","711135","Hindley Contractors LTD","17/0018/DFG","10,438.88","Grants paid out to other organisations","190555837","30/01/2019","-","Disabled Facilities Grants","C5011"
"Wolverhampton City Council","http://opendatacommunities.org/id/metropolitan-district-council/wolverhampton","711135","Hindley Contractors LTD","17/0018/DFGa.","3,840.00","Grants paid out to other organisations","190555837","30/01/2019","-","Disabled Facilities Grants","C5011"
"Wolverhampton City Council","http://opendatacommunities.org/id/metropolitan-district-council/wolverhampton","711198","The Pennine Acute Hospitals NHS Trust","A0010157 OOA GUM Month 4 -July 2018","135.00","TPP - Public Health Contracts","190545896","04/01/2019","Starting and Developing Well","Sexual Health","R5060"
"Wolverhampton City Council","http://opendatacommunities.org/id/metropolitan-district-council/wolverhampton","711200","Little Learners 123","TFT Spring 2019 Inst 1","565.92","TPP - Private Nursery Education Funding","190553192","23/01/2019","Early Years","Early Years Entitlement Funding for Disadvantaged 2 Year Olds","R5035"
"Wolverhampton City Council","http://opendatacommunities.org/id/metropolitan-district-council/wolverhampton","711209","SJC Castle Ltd","FINEWS056","91.50","Books","130239243","02/01/2019","Local Economy","Finchfield Library","R4309"
"Wolverhampton City Council","http://opendatacommunities.org/id/metropolitan-district-council/wolverhampton","711209","SJC Castle Ltd","FINEWS057","68.25","Books","130241306","23/01/2019","Local Economy","Finchfield Library","R4309"
"Wolverhampton City Council","http://opendatacommunities.org/id/metropolitan-district-council/wolverhampton","711271","Telford Occupational Heath Service Ltd","35975","470.00","Services - Professional Fees","130241595","30/01/2019","Human Resources","Doctors Service","R4400"
"Wolverhampton City Council","http://opendatacommunities.org/id/metropolitan-district-council/wolverhampton","711271","Telford Occupational Heath Service Ltd","34097","210.00","Services - Professional Fees","130241594","30/01/2019","Human Resources","Doctors Service","R4400"
"Wolverhampton City Council","http://opendatacommunities.org/id/metropolitan-district-council/wolverhampton","711271","Telford Occupational Heath Service Ltd","34068","210.00","Services - Professional Fees","130241786","30/01/2019","Human Resources","Doctors Service","R4400"
"Wolverhampton City Council","http://opendatacommunities.org/id/metropolitan-district-council/wolverhampton","711291","Resources for Autism","P19505920190107","231.25","TPP - Short Breaks","190547217","09/01/2019","Children & Young People In Care","Childrens with Disabilities Team","R5500"
"Wolverhampton City Council","http://opendatacommunities.org/id/metropolitan-district-council/wolverhampton","711291","Resources for Autism","P19505920190107","190.00","TPP - Short Breaks","190547217","09/01/2019","Children & Young People In Care","Childrens with Disabilities Team","R5500"
"Wolverhampton City Council","http://opendatacommunities.org/id/metropolitan-district-council/wolverhampton","711291","Resources for Autism","P19505920190107","332.50","TPP - Short Breaks","190547217","09/01/2019","Children & Young People In Care","Childrens with Disabilities Team","R5500"
"Wolverhampton City Council","http://opendatacommunities.org/id/metropolitan-district-council/wolverhampton","711291","Resources for Autism","P19505920190107","237.50","TPP - Short Breaks","190547217","09/01/2019","Children & Young People In Care","Childrens with Disabilities Team","R5500"
"Wolverhampton City Council","http://opendatacommunities.org/id/metropolitan-district-council/wolverhampton","711291","Resources for Autism","P19505920190107","484.50","TPP - Short Breaks","190547217","09/01/2019","Children & Young People In Care","Childrens with Disabilities Team","R5500"
"Wolverhampton City Council","http://opendatacommunities.org/id/metropolitan-district-council/wolverhampton","711291","Resources for Autism","P19505920190107","427.50","TPP - Short Breaks","190547217","09/01/2019","Children & Young People In Care","Childrens with Disabilities Team","R5500"
"Wolverhampton City Council","http://opendatacommunities.org/id/metropolitan-district-council/wolverhampton","711387","GTG Training Limited","557104","130.00","Room Hire","130241414","23/01/2019","School Improvement","Citizenship, Language and Learning","R2201"
"Wolverhampton City Council","http://opendatacommunities.org/id/metropolitan-district-council/wolverhampton","711387","GTG Training Limited","557104","33.30","Catering","130241414","23/01/2019","School Improvement","Citizenship, Language and Learning","R4100"
"Wolverhampton City Council","http://opendatacommunities.org/id/metropolitan-district-council/wolverhampton","711387","GTG Training Limited","558218","50.00","Training Expenses","130241787","25/01/2019","Public Service Reform","Centralised Training","R1650"
"Wolverhampton City Council","http://opendatacommunities.org/id/metropolitan-district-council/wolverhampton","711387","GTG Training Limited","555565","130.00","Room Hire","130237530","04/01/2019","School Improvement","School Standards Training","R2201"
"Wolverhampton City Council","http://opendatacommunities.org/id/metropolitan-district-council/wolverhampton","711387","GTG Training Limited","555565","66.60","Catering","130237530","04/01/2019","School Improvement","Citizenship, Language and Learning","R4100"
"Wolverhampton City Council","http://opendatacommunities.org/id/metropolitan-district-council/wolverhampton","711387","GTG Training Limited","558056","880.00","Room Hire","130238800","16/01/2019","School Improvement","School Standards Training","R2201"
"Wolverhampton City Council","http://opendatacommunities.org/id/metropolitan-district-council/wolverhampton","711408","Estates Gazette","249/EGA/02324246/18/12/18","419.00","Subscriptions","130238930","16/01/2019","City Development","City Development  - Core Team","R4701"
"Wolverhampton City Council","http://opendatacommunities.org/id/metropolitan-district-council/wolverhampton","711456","AVR Group Ltd","78937","2,937.69","Computing - Purchase of Software","130240576","25/01/2019","Audit Services","Health & Safety","R4531"
"Wolverhampton City Council","http://opendatacommunities.org/id/metropolitan-district-council/wolverhampton","711456","AVR Group Ltd","78843","2,907.03","Computing - Purchase of Software","130239608","16/01/2019","Audit Services","Health & Safety","R4531"
"Wolverhampton City Council","http://opendatacommunities.org/id/metropolitan-district-council/wolverhampton","711490","BHSEA","G138/60/18-19","60.00","Subscriptions","130241789","25/01/2019","Audit Services","Health & Safety","R4701"
"Wolverhampton City Council","http://opendatacommunities.org/id/metropolitan-district-council/wolverhampton","711532","Northamptonshire Healthcare NHS Trust","5143131 GUM November 2018","136.00","TPP - Public Health Contracts","190555915","30/01/2019","Starting and Developing Well","Sexual Health","R5060"
"Wolverhampton City Council","http://opendatacommunities.org/id/metropolitan-district-council/wolverhampton","711563","Mandy  Dalton Marsh","TFT Spring 19 January","188.64","TPP - Private Nursery Education Funding","190553184","23/01/2019","Early Years","Early Years Entitlement Funding for Disadvantaged 2 Year Olds","R5035"
"Wolverhampton City Council","http://opendatacommunities.org/id/metropolitan-district-council/wolverhampton","711563","Mandy  Dalton Marsh","NEF Spring 19 January","153.00","TPP - Private Nursery Education Funding","190553183","23/01/2019","Early Years","Early Years Universal Entitlement for 3 and 4 Year Olds","R5035"
"Wolverhampton City Council","http://opendatacommunities.org/id/metropolitan-district-council/wolverhampton","711567","Seawhite of Brighton","INV591025","88.00","Equipment - Purchase","130239006","09/01/2019","Adult Education","Access & FE","R4000"
"Wolverhampton City Council","http://opendatacommunities.org/id/metropolitan-district-council/wolverhampton","711567","Seawhite of Brighton","INV591025","7.00","Equipment - Purchase","130239006","09/01/2019","Adult Education","Access & FE","R4000"
"Wolverhampton City Council","http://opendatacommunities.org/id/metropolitan-district-council/wolverhampton","711629","University Hospitals Bristol","J0002622 GUM M7 2018/19","139.73","TPP - Public Health Contracts","190555916","30/01/2019","Starting and Developing Well","Sexual Health","R5060"
"Wolverhampton City Council","http://opendatacommunities.org/id/metropolitan-district-council/wolverhampton","711708","APSE","1819/1663","225.00","Conference Expenses","130239007","11/01/2019","Catering","Education Catering - General Overheads","R4611"
"Wolverhampton City Council","http://opendatacommunities.org/id/metropolitan-district-council/wolverhampton","711708","APSE","1819/1530","318.00","Training Expenses","130238220","02/01/2019","Environmental Maintenance","Allotments","R1650"
"Wolverhampton City Council","http://opendatacommunities.org/id/metropolitan-district-council/wolverhampton","711767","Nottingham University Hospitals NHS Trust","10000114669 18/19 M7 GUM","138.81","TPP - Public Health Contracts","190545893","04/01/2019","Starting and Developing Well","Sexual Health","R5060"
"Wolverhampton City Council","http://opendatacommunities.org/id/metropolitan-district-council/wolverhampton","711784","Guardian News and Media Ltd","1158368","600.00","Staff Advertising Costs","130241050","18/01/2019","The Hub","Central Advertising","R1700"
"Wolverhampton City Council","http://opendatacommunities.org/id/metropolitan-district-council/wolverhampton","711785","Progress Adult Living Services","INV-0934","1,502.10","TPP - Short Breaks","130239911","25/01/2019","Children & Young People In Care","Short Breaks","R5500"
"Wolverhampton City Council","http://opendatacommunities.org/id/metropolitan-district-council/wolverhampton","711785","Progress Adult Living Services","INV-087720190114","1,732.50","TPP - Home Care","190550062","16/01/2019","Learning Disabilities Care Purchasing","LD Care Purchasing (Spot Placements)","R5420"
"Wolverhampton City Council","http://opendatacommunities.org/id/metropolitan-district-council/wolverhampton","711785","Progress Adult Living Services","INV-094220190109","638.00","TPP - Home Care","190548389","11/01/2019","Learning Disabilities Care Purchasing","LD Care Purchasing (Spot Placements)","R5420"
"Wolverhampton City Council","http://opendatacommunities.org/id/metropolitan-district-council/wolverhampton","711785","Progress Adult Living Services","INV-094220190109","870.00","TPP - Home Care","190548389","11/01/2019","Learning Disabilities Care Purchasing","LD Care Purchasing (Spot Placements)","R5420"
"Wolverhampton City Council","http://opendatacommunities.org/id/metropolitan-district-council/wolverhampton","711785","Progress Adult Living Services","P19626820190116","66.00","TPP - Short Breaks","190551346","18/01/2019","Children & Young People In Care","Childrens with Disabilities Team","R5500"
"Wolverhampton City Council","http://opendatacommunities.org/id/metropolitan-district-council/wolverhampton","711785","Progress Adult Living Services","P19626820190116","792.00","TPP - Short Breaks","190551346","18/01/2019","Children & Young People In Care","Childrens with Disabilities Team","R5500"
"Wolverhampton City Council","http://opendatacommunities.org/id/metropolitan-district-council/wolverhampton","711785","Progress Adult Living Services","P19626820190116","664.13","TPP - Short Breaks","190551346","18/01/2019","Children & Young People In Care","Childrens with Disabilities Team","R5500"
"Wolverhampton City Council","http://opendatacommunities.org/id/metropolitan-district-council/wolverhampton","711785","Progress Adult Living Services","P19626820190116","511.50","TPP - Short Breaks","190551346","18/01/2019","Children & Young People In Care","Childrens with Disabilities Team","R5500"
"Wolverhampton City Council","http://opendatacommunities.org/id/metropolitan-district-council/wolverhampton","711785","Progress Adult Living Services","P19626820190116","66.00","TPP - Short Breaks","190551346","18/01/2019","Children & Young People In Care","Childrens with Disabilities Team","R5500"
"Wolverhampton City Council","http://opendatacommunities.org/id/metropolitan-district-council/wolverhampton","711785","Progress Adult Living Services","P19626820190116","156.76","TPP - Short Breaks","190551346","18/01/2019","Children & Young People In Care","Childrens with Disabilities Team","R5500"
"Wolverhampton City Council","http://opendatacommunities.org/id/metropolitan-district-council/wolverhampton","711785","Progress Adult Living Services","P19626820190116","132.00","TPP - Short Breaks","190551346","18/01/2019","Children & Young People In Care","Childrens with Disabilities Team","R5500"
"Wolverhampton City Council","http://opendatacommunities.org/id/metropolitan-district-council/wolverhampton","711785","Progress Adult Living Services","P19626820190116","181.50","TPP - Short Breaks","190551346","18/01/2019","Children & Young People In Care","Childrens with Disabilities Team","R5500"
"Wolverhampton City Council","http://opendatacommunities.org/id/metropolitan-district-council/wolverhampton","711785","Progress Adult Living Services","P19626820190116","165.00","TPP - Short Breaks","190551346","18/01/2019","Children & Young People In Care","Childrens with Disabilities Team","R5500"
"Wolverhampton City Council","http://opendatacommunities.org/id/metropolitan-district-council/wolverhampton","711785","Progress Adult Living Services","P19626820190116","99.00","TPP - Short Breaks","190551346","18/01/2019","Children & Young People In Care","Childrens with Disabilities Team","R5500"
"Wolverhampton City Council","http://opendatacommunities.org/id/metropolitan-district-council/wolverhampton","711785","Progress Adult Living Services","INV-094520190109","832.00","TPP - Home Care","190548390","11/01/2019","Learning Disabilities Care Purchasing","LD Care Purchasing (Spot Placements)","R5420"
"Wolverhampton City Council","http://opendatacommunities.org/id/metropolitan-district-council/wolverhampton","711785","Progress Adult Living Services","INV-094520190109","832.00","TPP - Home Care","190548390","11/01/2019","Learning Disabilities Care Purchasing","LD Care Purchasing (Spot Placements)","R5420"
"Wolverhampton City Council","http://opendatacommunities.org/id/metropolitan-district-council/wolverhampton","711798","Dr Cvijan","DRC/59535","656.50","Services - Professional Fees","190551700","18/01/2019","Public Service Reform","Coroners Service","R4400"
"Wolverhampton City Council","http://opendatacommunities.org/id/metropolitan-district-council/wolverhampton","711798","Dr Cvijan","DRC/59936","815.60","Services - Professional Fees","190551701","18/01/2019","Public Service Reform","Coroners Service","R4400"
"Wolverhampton City Council","http://opendatacommunities.org/id/metropolitan-district-council/wolverhampton","711874","Nichola Tompkins","NEF Spring 2019 INST 1","459.00","TPP - Private Nursery Education Funding","190553185","23/01/2019","Early Years","Early Years Universal Entitlement for 3 and 4 Year Olds","R5035"
"Wolverhampton City Council","http://opendatacommunities.org/id/metropolitan-district-council/wolverhampton","711931","Nishkam Nursery School","NEF Spring 2019 INST 1","21,573.00","TPP - Private Nursery Education Funding","190553185","23/01/2019","Early Years","Early Years Universal Entitlement for 3 and 4 Year Olds","R5035"
"Wolverhampton City Council","http://opendatacommunities.org/id/metropolitan-district-council/wolverhampton","711931","Nishkam Nursery School","TFT Spring 2019 Inst 1","7,356.96","TPP - Private Nursery Education Funding","190553192","23/01/2019","Early Years","Early Years Entitlement Funding for Disadvantaged 2 Year Olds","R5035"
"Wolverhampton City Council","http://opendatacommunities.org/id/metropolitan-district-council/wolverhampton","711948","Ms PK Moore","51","450.00","No Recourse to Public Funds","130228210","09/01/2019","Strengthening Families","CP Area 4- Bingley","R6314"
"Wolverhampton City Council","http://opendatacommunities.org/id/metropolitan-district-council/wolverhampton","712005","YMCA Black Country Group","P19689820190125","90.00","Client Allowances","190554903","30/01/2019","Children & Young People In Care","LAC Transitions Team","R6301"
"Wolverhampton City Council","http://opendatacommunities.org/id/metropolitan-district-council/wolverhampton","712005","YMCA Black Country Group","P19689820190125","90.00","Client Allowances","190554903","30/01/2019","Children & Young People In Care","LAC Transitions Team","R6301"
"Wolverhampton City Council","http://opendatacommunities.org/id/metropolitan-district-council/wolverhampton","712005","YMCA Black Country Group","12580","26,624.64","TPP - Payments to voluntary groups","130236898","30/01/2019","Headstart","Headstart - Commissioned Activity","R5200"
"Wolverhampton City Council","http://opendatacommunities.org/id/metropolitan-district-council/wolverhampton","712005","YMCA Black Country Group","12580","26,624.64","TPP - Payments to voluntary groups","130236898","30/01/2019","Headstart","Headstart - Commissioned Activity","R5200"
"Wolverhampton City Council","http://opendatacommunities.org/id/metropolitan-district-council/wolverhampton","712005","YMCA Black Country Group","P19505720190107","90.00","Client Allowances","190547215","09/01/2019","Children & Young People In Care","LAC Transitions Team","R6301"
"Wolverhampton City Council","http://opendatacommunities.org/id/metropolitan-district-council/wolverhampton","712005","YMCA Black Country Group","P19657720190122","1,080.00","Client Allowances","190553905","23/01/2019","Children & Young People In Care","LAC Transitions Team","R6301"
"Wolverhampton City Council","http://opendatacommunities.org/id/metropolitan-district-council/wolverhampton","712005","YMCA Black Country Group","P19642120190118","90.00","Client Allowances","190552319","23/01/2019","Children & Young People In Care","LAC Transitions Team","R6301"
"Wolverhampton City Council","http://opendatacommunities.org/id/metropolitan-district-council/wolverhampton","712005","YMCA Black Country Group","P19642020190118","1,170.00","Client Allowances","190552318","23/01/2019","Children & Young People In Care","LAC Transitions Team","R6301"
"Wolverhampton City Council","http://opendatacommunities.org/id/metropolitan-district-council/wolverhampton","712005","YMCA Black Country Group","P19642020190118","205.72","Client Allowances","190552318","23/01/2019","Children & Young People In Care","LAC Transitions Team","R6301"
"Wolverhampton City Council","http://opendatacommunities.org/id/metropolitan-district-council/wolverhampton","712005","YMCA Black Country Group","P19642020190118","552.86","Client Allowances","190552318","23/01/2019","Children & Young People In Care","LAC Transitions Team","R6301"
"Wolverhampton City Council","http://opendatacommunities.org/id/metropolitan-district-council/wolverhampton","712005","YMCA Black Country Group","P19565820190111","90.00","Client Allowances","190549634","16/01/2019","Children & Young People In Care","LAC Transitions Team","R6301"
"Wolverhampton City Council","http://opendatacommunities.org/id/metropolitan-district-council/wolverhampton","712005","YMCA Black Country Group","P19488420181231","90.00","Client Allowances","190545556","02/01/2019","Children & Young People In Care","LAC Transitions Team","R6301"
"Wolverhampton City Council","http://opendatacommunities.org/id/metropolitan-district-council/wolverhampton","712005","YMCA Black Country Group","SL11","40.00","Grant Payments","130241051","18/01/2019","Strengthening Families","EI Area 8 -  Children�s Village","R4700"
"Wolverhampton City Council","http://opendatacommunities.org/id/metropolitan-district-council/wolverhampton","712032","Guide Dogs for the Blind Association","20005015","1,275.47","TPP - Social Care Support Services","130239609","09/01/2019","Special Educational Needs","SEN Sensory Inclusion","R5501"
"Wolverhampton City Council","http://opendatacommunities.org/id/metropolitan-district-council/wolverhampton","712032","Guide Dogs for the Blind Association","20005087","1,095.42","TPP - Social Care Support Services","130240333","16/01/2019","Special Educational Needs","SEN Sensory Inclusion","R5501"
"Wolverhampton City Council","http://opendatacommunities.org/id/metropolitan-district-council/wolverhampton","712129","Carol Davies","166","210.60","Services - Professional Fees","130239443","16/01/2019","Safeguarding","Safeguarding Partnership Board","R4400"
"Wolverhampton City Council","http://opendatacommunities.org/id/metropolitan-district-council/wolverhampton","712171","Robert Conway","472/18","75.00","Services - Professional Fees","130238221","09/01/2019","Visitor Economy","Art Galleries - Schools Art SLA Service","R4400"
"Wolverhampton City Council","http://opendatacommunities.org/id/metropolitan-district-council/wolverhampton","712175","William Parratt Masonry Ltd","DG/8459","235.00","R&M - Departmental planned (external)","130237195","02/01/2019","Public Service Reform","Mayoral Expenses","R2001"
"Wolverhampton City Council","http://opendatacommunities.org/id/metropolitan-district-council/wolverhampton","712215","University Hosp. Coventry & Warwickshire","1000068228","258.66","Services - Professional Fees","130239244","11/01/2019","Public Service Reform","Coroners Service","R4400"
"Wolverhampton City Council","http://opendatacommunities.org/id/metropolitan-district-council/wolverhampton","712270","Britton and Storey","12142","390.00","Services - Professional Fees","130241052","30/01/2019","Visitor Economy","Art Gallery","R4400"
"Wolverhampton City Council","http://opendatacommunities.org/id/metropolitan-district-council/wolverhampton","712270","Britton and Storey","12140","980.00","Services - Professional Fees","130239610","16/01/2019","Visitor Economy","Hand Drawn-Action Packed -  ACE NPO WAG","R4400"
"Wolverhampton City Council","http://opendatacommunities.org/id/metropolitan-district-council/wolverhampton","712280","Libran Property Management","P19565620190111","534.64","Client Allowances","190549632","16/01/2019","Children & Young People In Care","Looked After Team 1","R6301"
"Wolverhampton City Council","http://opendatacommunities.org/id/metropolitan-district-council/wolverhampton","712280","Libran Property Management","P19641920190118","655.80","Client Allowances","190552316","23/01/2019","Children & Young People In Care","Looked After Team 1","R6301"
"Wolverhampton City Council","http://opendatacommunities.org/id/metropolitan-district-council/wolverhampton","712314","June Knight","NEF Spring 2019 INST 1","1,377.00","TPP - Private Nursery Education Funding","190553185","23/01/2019","Early Years","Early Years Universal Entitlement for 3 and 4 Year Olds","R5035"
"Wolverhampton City Council","http://opendatacommunities.org/id/metropolitan-district-council/wolverhampton","712356","Finning (UK) Ltd","CTIN06560540","104.88","Services - Professional Fees","190545463","02/01/2019","Fleet Services","Fleet Management","R4400"
"Wolverhampton City Council","http://opendatacommunities.org/id/metropolitan-district-council/wolverhampton","712356","Finning (UK) Ltd","CTIN06562922","-4.30","Services - Professional Fees","190553897","23/01/2019","Fleet Services","Fleet Management","R4400"
"Wolverhampton City Council","http://opendatacommunities.org/id/metropolitan-district-council/wolverhampton","712356","Finning (UK) Ltd","CTIN06562393","122.98","Services - Professional Fees","190553896","23/01/2019","Fleet Services","Fleet Management","R4400"
"Wolverhampton City Council","http://opendatacommunities.org/id/metropolitan-district-council/wolverhampton","712372","Wider Learning","WL0312","12,500.00","Services - Professional Fees","130240151","30/01/2019","Headstart","Headstart - Young People Engagement","R4400"
"Wolverhampton City Council","http://opendatacommunities.org/id/metropolitan-district-council/wolverhampton","712374","Pohwer","SINV8177","2,751.00","Services - Independent Mental Capacity Advocate","130230720","25/01/2019","Safeguarding","MCA General","R4415"
"Wolverhampton City Council","http://opendatacommunities.org/id/metropolitan-district-council/wolverhampton","712374","Pohwer","SINV8834","18,677.25","Services - Independent Mental Capacity Advocate","130239611","25/01/2019","Safeguarding","MCA General","R4415"
"Wolverhampton City Council","http://opendatacommunities.org/id/metropolitan-district-council/wolverhampton","712385","Rebecca Critchlow","NEF Spring 2019 INST 1","2,142.00","TPP - Private Nursery Education Funding","190553185","23/01/2019","Early Years","Early Years Universal Entitlement for 3 and 4 Year Olds","R5035"
"Wolverhampton City Council","http://opendatacommunities.org/id/metropolitan-district-council/wolverhampton","712391","Cary�s Childcare","NEF Spring 19 January","1,279.25","TPP - Private Nursery Education Funding","190553183","23/01/2019","Early Years","Early Years Universal Entitlement for 3 and 4 Year Olds","R5035"
"Wolverhampton City Council","http://opendatacommunities.org/id/metropolitan-district-council/wolverhampton","712391","Cary�s Childcare","TFT Spring 19 January","188.64","TPP - Private Nursery Education Funding","190553184","23/01/2019","Early Years","Early Years Entitlement Funding for Disadvantaged 2 Year Olds","R5035"
"Wolverhampton City Council","http://opendatacommunities.org/id/metropolitan-district-council/wolverhampton","712421","Les Mills Fitness UK Ltd","SIV287641","644.30","Services - General Licences","130237532","09/01/2019","Leisure Services","Bert Williams Leisure Centre","R4402"
"Wolverhampton City Council","http://opendatacommunities.org/id/metropolitan-district-council/wolverhampton","712421","Les Mills Fitness UK Ltd","SIV284725","644.30","Services - General Licences","130234374","09/01/2019","Leisure Services","Bert Williams Leisure Centre","R4402"
"Wolverhampton City Council","http://opendatacommunities.org/id/metropolitan-district-council/wolverhampton","712421","Les Mills Fitness UK Ltd","SIV287747","399.80","Services - General Licences","130237533","02/01/2019","Leisure Services","Aldersley Leisure Village","R4402"
"Wolverhampton City Council","http://opendatacommunities.org/id/metropolitan-district-council/wolverhampton","712471","Nigel Frank International Ltd","432023460","10,934.00","Agency Staff","130237534","30/01/2019","ICTS","Strategic ICTS (ICT Service Budget)","R1100"
"Wolverhampton City Council","http://opendatacommunities.org/id/metropolitan-district-council/wolverhampton","712481","Frontline Staffing Ltd","4588373","1,089.00","Agency Staff","130239615","25/01/2019","Strengthening Families","CP Area 5-Whitemore Reans","R1100"
"Wolverhampton City Council","http://opendatacommunities.org/id/metropolitan-district-council/wolverhampton","712481","Frontline Staffing Ltd","4538095","1,546.23","Agency Staff","130234975","25/01/2019","Strengthening Families","MASH","R1100"
"Wolverhampton City Council","http://opendatacommunities.org/id/metropolitan-district-council/wolverhampton","712481","Frontline Staffing Ltd","4588372","9.00","Agency Staff","130239614","25/01/2019","Strengthening Families","MASH","R1100"
"Wolverhampton City Council","http://opendatacommunities.org/id/metropolitan-district-council/wolverhampton","712481","Frontline Staffing Ltd","4588371","1,546.23","Agency Staff","130239613","25/01/2019","Strengthening Families","MASH","R1100"
"Wolverhampton City Council","http://opendatacommunities.org/id/metropolitan-district-council/wolverhampton","712481","Frontline Staffing Ltd","4532214","1,546.23","Agency Staff","130234627","25/01/2019","Strengthening Families","MASH","R1100"
"Wolverhampton City Council","http://opendatacommunities.org/id/metropolitan-district-council/wolverhampton","712481","Frontline Staffing Ltd","4538094","1,544.75","Agency Staff","130234974","25/01/2019","Strengthening Families","MASH","R1100"
"Wolverhampton City Council","http://opendatacommunities.org/id/metropolitan-district-council/wolverhampton","712481","Frontline Staffing Ltd","4584789","1,831.50","Agency Staff","130239253","23/01/2019","Strengthening Families","CP Area 5-Whitemore Reans","R1100"
"Wolverhampton City Council","http://opendatacommunities.org/id/metropolitan-district-council/wolverhampton","712481","Frontline Staffing Ltd","4553897","1,546.23","Agency Staff","130236698","23/01/2019","Strengthening Families","CP Area 8 - Children�s Village","R1100"
"Wolverhampton City Council","http://opendatacommunities.org/id/metropolitan-district-council/wolverhampton","712481","Frontline Staffing Ltd","4584788","19.85","Agency Staff","130239252","23/01/2019","Strengthening Families","MASH","R1100"
"Wolverhampton City Council","http://opendatacommunities.org/id/metropolitan-district-council/wolverhampton","712481","Frontline Staffing Ltd","4560968","1,546.23","Agency Staff","130237740","25/01/2019","Strengthening Families","CP Area 8 - Children�s Village","R1100"
"Wolverhampton City Council","http://opendatacommunities.org/id/metropolitan-district-council/wolverhampton","712481","Frontline Staffing Ltd","4575394","8.10","Agency Staff","130239248","11/01/2019","Strengthening Families","MASH","R1100"
"Wolverhampton City Council","http://opendatacommunities.org/id/metropolitan-district-council/wolverhampton","712481","Frontline Staffing Ltd","4575392","1,546.23","Agency Staff","130239247","11/01/2019","Strengthening Families","MASH","R1100"
"Wolverhampton City Council","http://opendatacommunities.org/id/metropolitan-district-council/wolverhampton","712481","Frontline Staffing Ltd","4575396","1,831.50","Agency Staff","130239249","11/01/2019","Strengthening Families","CP Area 5-Whitemore Reans","R1100"
"Wolverhampton City Council","http://opendatacommunities.org/id/metropolitan-district-council/wolverhampton","712481","Frontline Staffing Ltd","4569244","13.05","Agency Staff","130238061","09/01/2019","Strengthening Families","MASH","R1100"
"Wolverhampton City Council","http://opendatacommunities.org/id/metropolitan-district-council/wolverhampton","712481","Frontline Staffing Ltd","4589577","773.12","Agency Staff","130239616","30/01/2019","Strengthening Families","MASH","R1100"
"Wolverhampton City Council","http://opendatacommunities.org/id/metropolitan-district-council/wolverhampton","712481","Frontline Staffing Ltd","4530568","1,544.75","Agency Staff","130234196","30/01/2019","Strengthening Families","CP Area 6 - Dovecotes","R1100"
"Wolverhampton City Council","http://opendatacommunities.org/id/metropolitan-district-council/wolverhampton","712481","Frontline Staffing Ltd","4567751","1,831.50","Agency Staff","130237927","04/01/2019","Strengthening Families","CP Area 5-Whitemore Reans","R1100"
"Wolverhampton City Council","http://opendatacommunities.org/id/metropolitan-district-council/wolverhampton","712481","Frontline Staffing Ltd","4583419","19.35","Agency Staff","130239250","18/01/2019","Strengthening Families","MASH","R1100"
"Wolverhampton City Council","http://opendatacommunities.org/id/metropolitan-district-council/wolverhampton","712481","Frontline Staffing Ltd","4567748","13.95","Agency Staff","130237924","09/01/2019","Strengthening Families","MASH","R1100"
"Wolverhampton City Council","http://opendatacommunities.org/id/metropolitan-district-council/wolverhampton","712481","Frontline Staffing Ltd","4560969","8.55","Agency Staff","130237741","09/01/2019","Strengthening Families","MASH","R1100"
"Wolverhampton City Council","http://opendatacommunities.org/id/metropolitan-district-council/wolverhampton","712481","Frontline Staffing Ltd","4569243","1,567.13","Agency Staff","130238060","09/01/2019","Strengthening Families","MASH","R1100"
"Wolverhampton City Council","http://opendatacommunities.org/id/metropolitan-district-council/wolverhampton","712481","Frontline Staffing Ltd","4569245","14.40","Agency Staff","130238062","09/01/2019","Strengthening Families","CP Area 4- Bingley","R1100"
"Wolverhampton City Council","http://opendatacommunities.org/id/metropolitan-district-council/wolverhampton","712481","Frontline Staffing Ltd","4567750","919.38","Agency Staff","130237926","04/01/2019","Strengthening Families","CP Area 4- Bingley","R1100"
"Wolverhampton City Council","http://opendatacommunities.org/id/metropolitan-district-council/wolverhampton","712481","Frontline Staffing Ltd","4567749","1,544.75","Agency Staff","130237925","09/01/2019","Strengthening Families","MASH","R1100"
"Wolverhampton City Council","http://opendatacommunities.org/id/metropolitan-district-council/wolverhampton","712481","Frontline Staffing Ltd","4546847","1,546.23","Agency Staff","130235614","18/01/2019","Strengthening Families","CP Area 8 - Children�s Village","R1100"
"Wolverhampton City Council","http://opendatacommunities.org/id/metropolitan-district-council/wolverhampton","712481","Frontline Staffing Ltd","4560967","1,544.75","Agency Staff","130237739","02/01/2019","Strengthening Families","CP Area 5-Whitemore Reans","R1100"
"Wolverhampton City Council","http://opendatacommunities.org/id/metropolitan-district-council/wolverhampton","712502","Granart Limited","9219","60.00","Materials for resale","130241928","25/01/2019","Bereavement Services","Cemeteries","R4008"
"Wolverhampton City Council","http://opendatacommunities.org/id/metropolitan-district-council/wolverhampton","712530","Lift Truck Services Limited","153244","294.00","Hire of Vehicles","190551533","18/01/2019","Fleet Services","Fleet Management","R3200"
"Wolverhampton City Council","http://opendatacommunities.org/id/metropolitan-district-council/wolverhampton","712571","Hillcrest Children�s Services (2) Ltd t/a Options BESD (1) Ltd","1120201579","28,096.17","TPP - Independent Schools","130241188","23/01/2019","Special Educational Needs","SEN Education OOC","R5036"
"Wolverhampton City Council","http://opendatacommunities.org/id/metropolitan-district-council/wolverhampton","712571","Hillcrest Children�s Services (2) Ltd t/a Options BESD (1) Ltd","1120201579","28,096.17","TPP - Independent Schools","130241188","23/01/2019","Special Educational Needs","SEN Education OOC","R5036"
"Wolverhampton City Council","http://opendatacommunities.org/id/metropolitan-district-council/wolverhampton","712571","Hillcrest Children�s Services (2) Ltd t/a Options BESD (1) Ltd","1120201593","28,096.17","TPP - Independent Schools","130241310","23/01/2019","Special Educational Needs","SEN Education OOC","R5036"
"Wolverhampton City Council","http://opendatacommunities.org/id/metropolitan-district-council/wolverhampton","712571","Hillcrest Children�s Services (2) Ltd t/a Options BESD (1) Ltd","1120201593","28,096.17","TPP - Independent Schools","130241310","23/01/2019","Special Educational Needs","SEN Education OOC","R5036"
"Wolverhampton City Council","http://opendatacommunities.org/id/metropolitan-district-council/wolverhampton","712571","Hillcrest Children�s Services (2) Ltd t/a Options BESD (1) Ltd","1120201581","28,096.17","TPP - Independent Schools","130241189","23/01/2019","Special Educational Needs","SEN Education OOC","R5036"
"Wolverhampton City Council","http://opendatacommunities.org/id/metropolitan-district-council/wolverhampton","712571","Hillcrest Children�s Services (2) Ltd t/a Options BESD (1) Ltd","1120201581","28,096.17","TPP - Independent Schools","130241189","23/01/2019","Special Educational Needs","SEN Education OOC","R5036"
"Wolverhampton City Council","http://opendatacommunities.org/id/metropolitan-district-council/wolverhampton","712571","Hillcrest Children�s Services (2) Ltd t/a Options BESD (1) Ltd","1120201591","28,095.39","TPP - Independent Schools","130241190","23/01/2019","Special Educational Needs","SEN Education OOC","R5036"
"Wolverhampton City Council","http://opendatacommunities.org/id/metropolitan-district-council/wolverhampton","712571","Hillcrest Children�s Services (2) Ltd t/a Options BESD (1) Ltd","1120201591","28,095.39","TPP - Independent Schools","130241190","23/01/2019","Special Educational Needs","SEN Education OOC","R5036"
"Wolverhampton City Council","http://opendatacommunities.org/id/metropolitan-district-council/wolverhampton","712571","Hillcrest Children�s Services (2) Ltd t/a Options BESD (1) Ltd","1120201586","28,096.17","TPP - Independent Schools","130241308","23/01/2019","Special Educational Needs","SEN Education OOC","R5036"
"Wolverhampton City Council","http://opendatacommunities.org/id/metropolitan-district-council/wolverhampton","712571","Hillcrest Children�s Services (2) Ltd t/a Options BESD (1) Ltd","1120201586","28,096.17","TPP - Independent Schools","130241308","23/01/2019","Special Educational Needs","SEN Education OOC","R5036"
"Wolverhampton City Council","http://opendatacommunities.org/id/metropolitan-district-council/wolverhampton","712571","Hillcrest Children�s Services (2) Ltd t/a Options BESD (1) Ltd","1120201590","28,096.17","TPP - Independent Schools","130241309","23/01/2019","Special Educational Needs","SEN Education OOC","R5036"
"Wolverhampton City Council","http://opendatacommunities.org/id/metropolitan-district-council/wolverhampton","712571","Hillcrest Children�s Services (2) Ltd t/a Options BESD (1) Ltd","1120201590","28,096.17","TPP - Independent Schools","130241309","23/01/2019","Special Educational Needs","SEN Education OOC","R5036"
"Wolverhampton City Council","http://opendatacommunities.org/id/metropolitan-district-council/wolverhampton","712571","Hillcrest Children�s Services (2) Ltd t/a Options BESD (1) Ltd","P195896 03021920190114","15,336.00","TPP - Residential Care - Long Term","190550136","16/01/2019","Children & Young People In Care","Out of City - Pooled Budget","R5400"
"Wolverhampton City Council","http://opendatacommunities.org/id/metropolitan-district-council/wolverhampton","712571","Hillcrest Children�s Services (2) Ltd t/a Options BESD (1) Ltd","P195896 03021920190114","15,336.00","TPP - Residential Care - Long Term","190550136","16/01/2019","Children & Young People In Care","Out of City - Pooled Budget","R5400"
"Wolverhampton City Council","http://opendatacommunities.org/id/metropolitan-district-council/wolverhampton","712583","Acuity Legal Limited","22852","3,616.85","Services - Professional Fees","130239914","30/01/2019","Legal Services","Centralised External Legal Costs","R4400"
"Wolverhampton City Council","http://opendatacommunities.org/id/metropolitan-district-council/wolverhampton","712583","Acuity Legal Limited","21125","1,800.00","Services - Professional Fees","130239444","04/01/2019","Legal Services","Centralised External Legal Costs","R4400"
"Wolverhampton City Council","http://opendatacommunities.org/id/metropolitan-district-council/wolverhampton","712763","WCC CTAX and NNDR uploads only","612347285615","145.45","No Recourse to Public Funds","190555185","30/01/2019","Strengthening Families","CP Area 5-Whitemore Reans","R6314"
"Wolverhampton City Council","http://opendatacommunities.org/id/metropolitan-district-council/wolverhampton","712763","WCC CTAX and NNDR uploads only","612346921127 (a10)","112.00","No Recourse to Public Funds","190548258","09/01/2019","Strengthening Families","CP Area 5-Whitemore Reans","R6314"
"Wolverhampton City Council","http://opendatacommunities.org/id/metropolitan-district-council/wolverhampton","712763","WCC CTAX and NNDR uploads only","612346317980(a10)","86.00","No Recourse to Public Funds","190548259","09/01/2019","Strengthening Families","CP Area 5-Whitemore Reans","R6314"
"Wolverhampton City Council","http://opendatacommunities.org/id/metropolitan-district-council/wolverhampton","712763","WCC CTAX and NNDR uploads only","612345995011(a10)","101.74","No Recourse to Public Funds","190548260","09/01/2019","Strengthening Families","CP Area 5-Whitemore Reans","R6314"
"Wolverhampton City Council","http://opendatacommunities.org/id/metropolitan-district-council/wolverhampton","712763","WCC CTAX and NNDR uploads only","1038356E","5.16","Discretionary Benefits","190554208","25/01/2019","Revenues & Benefits","Housing Benefit Payments","R6230"
"Wolverhampton City Council","http://opendatacommunities.org/id/metropolitan-district-council/wolverhampton","712763","WCC CTAX and NNDR uploads only","P19689320190124","2,160.00","TPP - Accommodation","190554261","25/01/2019","Community Financial Support","Destitute Plus","R5603"
"Wolverhampton City Council","http://opendatacommunities.org/id/metropolitan-district-council/wolverhampton","712763","WCC CTAX and NNDR uploads only","1038356E.","5.16","Discretionary Benefits","190554209","25/01/2019","Revenues & Benefits","Housing Benefit Payments","R6230"
"Wolverhampton City Council","http://opendatacommunities.org/id/metropolitan-district-council/wolverhampton","712812","Tettenhall Green Kindergarten","4","372.00","TPP - Child Care provided for client","130241311","30/01/2019","Adult Education","24+ Advanced Learning Loan","R5034"
"Wolverhampton City Council","http://opendatacommunities.org/id/metropolitan-district-council/wolverhampton","712825","Jumping Jos Day Nursery","TFT Spring 2019 Inst 1","13,016.16","TPP - Private Nursery Education Funding","190553192","23/01/2019","Early Years","Early Years Entitlement Funding for Disadvantaged 2 Year Olds","R5035"
"Wolverhampton City Council","http://opendatacommunities.org/id/metropolitan-district-council/wolverhampton","712825","Jumping Jos Day Nursery","NEF Spring 2019 INST 1","11,016.00","TPP - Private Nursery Education Funding","190553185","23/01/2019","Early Years","Early Years Universal Entitlement for 3 and 4 Year Olds","R5035"
"Wolverhampton City Council","http://opendatacommunities.org/id/metropolitan-district-council/wolverhampton","712827","Shooting Stars Nurseries","TFT Spring 2019 Inst 1","2,263.68","TPP - Private Nursery Education Funding","190553192","23/01/2019","Early Years","Early Years Entitlement Funding for Disadvantaged 2 Year Olds","R5035"
"Wolverhampton City Council","http://opendatacommunities.org/id/metropolitan-district-council/wolverhampton","712827","Shooting Stars Nurseries","NEF Spring 2019 INST 1","29,376.00","TPP - Private Nursery Education Funding","190553185","23/01/2019","Early Years","Early Years Universal Entitlement for 3 and 4 Year Olds","R5035"
"Wolverhampton City Council","http://opendatacommunities.org/id/metropolitan-district-council/wolverhampton","712830","Elaine Gosnell","NEF Spring 2019 INST 1","918.00","TPP - Private Nursery Education Funding","190553185","23/01/2019","Early Years","Early Years Universal Entitlement for 3 and 4 Year Olds","R5035"
"Wolverhampton City Council","http://opendatacommunities.org/id/metropolitan-district-council/wolverhampton","712856","Gloucestershire Care Services NHS Trust","5000006429 GUM December 2018","58.08","TPP - Public Health Contracts","190555913","30/01/2019","Starting and Developing Well","Sexual Health","R5060"
"Wolverhampton City Council","http://opendatacommunities.org/id/metropolitan-district-council/wolverhampton","712874","Riverside Environmental Services Limited","I028819","930.00","R&M - Departmental planned (external)","130237202","02/01/2019","Corporate Asset Management","Statutory Surveys","R2001"
"Wolverhampton City Council","http://opendatacommunities.org/id/metropolitan-district-council/wolverhampton","712874","Riverside Environmental Services Limited","I029010","395.00","R&M - Departmental planned (external)","130239916","25/01/2019","Corporate Asset Management","Statutory Surveys","R2001"
"Wolverhampton City Council","http://opendatacommunities.org/id/metropolitan-district-council/wolverhampton","712874","Riverside Environmental Services Limited","I029103","500.00","R&M - Departmental planned (external)","130239918","25/01/2019","Corporate Asset Management","Statutory Surveys","R2001"
"Wolverhampton City Council","http://opendatacommunities.org/id/metropolitan-district-council/wolverhampton","712874","Riverside Environmental Services Limited","I029009","150.00","R&M - Departmental planned (external)","130239915","25/01/2019","School Planning & Resources","Other Support Services","R2001"
"Wolverhampton City Council","http://opendatacommunities.org/id/metropolitan-district-council/wolverhampton","712874","Riverside Environmental Services Limited","I029102","240.00","R&M - Departmental planned (external)","130239917","25/01/2019","Corporate Asset Management","Statutory Surveys","R2001"
"Wolverhampton City Council","http://opendatacommunities.org/id/metropolitan-district-council/wolverhampton","712917","Dr Abbie L Pugh","DRAP/59873","803.00","Services - Professional Fees","190551703","18/01/2019","Public Service Reform","Coroners Service","R4400"
"Wolverhampton City Council","http://opendatacommunities.org/id/metropolitan-district-council/wolverhampton","712917","Dr Abbie L Pugh","DRAP/59579","1,169.80","Services - Professional Fees","190551702","18/01/2019","Public Service Reform","Coroners Service","R4400"
"Wolverhampton City Council","http://opendatacommunities.org/id/metropolitan-district-council/wolverhampton","712929","Aspiring Futures CIC","16","1,000.00","Services - Professional Fees","130239445","30/01/2019","Skills","Employment Programmes","R4400"
"Wolverhampton City Council","http://opendatacommunities.org/id/metropolitan-district-council/wolverhampton","713009","Wightwick Hall School","WHSI101","14,858.88","TPP - Alternative Provision of Education","130241312","23/01/2019","Special Educational Needs","SEN Education OOC","R5037"
"Wolverhampton City Council","http://opendatacommunities.org/id/metropolitan-district-council/wolverhampton","713009","Wightwick Hall School","WHSI102","15,716.02","TPP - Alternative Provision of Education","130241313","23/01/2019","Special Educational Needs","SEN Education OOC","R5037"
"Wolverhampton City Council","http://opendatacommunities.org/id/metropolitan-district-council/wolverhampton","713009","Wightwick Hall School","WHSI108","17,001.73","TPP - Alternative Provision of Education","130241314","23/01/2019","Special Educational Needs","SEN Education OOC","R5037"
"Wolverhampton City Council","http://opendatacommunities.org/id/metropolitan-district-council/wolverhampton","713009","Wightwick Hall School","WHSI116","12,751.30","TPP - Alternative Provision of Education","130241315","23/01/2019","Special Educational Needs","SEN Education OOC","R5037"
"Wolverhampton City Council","http://opendatacommunities.org/id/metropolitan-district-council/wolverhampton","713044","Prestbury Medical Practice","FOS4152","76.24","Services - Professional Fees","190550470","16/01/2019","Children & Young People In Care","Fostering Team & Allowances","R4400"
"Wolverhampton City Council","http://opendatacommunities.org/id/metropolitan-district-council/wolverhampton","713044","Prestbury Medical Practice","FOS4151","76.24","Services - Professional Fees","190550469","16/01/2019","Children & Young People In Care","Fostering Team & Allowances","R4400"
"Wolverhampton City Council","http://opendatacommunities.org/id/metropolitan-district-council/wolverhampton","713059","Sage Pay Europe Ltd (formely Sage Pay)","EU-00860072","956.85","Services - Bank Charges","130239617","25/01/2019","Central Corporate Budgets","Corporate Management (Bank Charges)","R4403"
"Wolverhampton City Council","http://opendatacommunities.org/id/metropolitan-district-council/wolverhampton","713059","Sage Pay Europe Ltd (formely Sage Pay)","EU-00746065","850.95","Services - Bank Charges","130230507","11/01/2019","Central Corporate Budgets","Corporate Management (Bank Charges)","R4403"
"Wolverhampton City Council","http://opendatacommunities.org/id/metropolitan-district-council/wolverhampton","713059","Sage Pay Europe Ltd (formely Sage Pay)","EU-00707856","821.45","Services - Bank Charges","130227485","11/01/2019","Central Corporate Budgets","Corporate Management (Bank Charges)","R4403"
"Wolverhampton City Council","http://opendatacommunities.org/id/metropolitan-district-council/wolverhampton","713059","Sage Pay Europe Ltd (formely Sage Pay)","EU-00785342","968.65","Services - Bank Charges","130233804","11/01/2019","Central Corporate Budgets","Corporate Management (Bank Charges)","R4403"
"Wolverhampton City Council","http://opendatacommunities.org/id/metropolitan-district-council/wolverhampton","713059","Sage Pay Europe Ltd (formely Sage Pay)","EU-00669334","827.10","Services - Bank Charges","130224643","11/01/2019","Central Corporate Budgets","Corporate Management (Bank Charges)","R4403"
"Wolverhampton City Council","http://opendatacommunities.org/id/metropolitan-district-council/wolverhampton","713109","DMB Consultancy Ltd","516","1,300.00","Services - Professional Fees","130239447","25/01/2019","Human Resources","Doctors Service","R4400"
"Wolverhampton City Council","http://opendatacommunities.org/id/metropolitan-district-council/wolverhampton","713113","Mall Solutions Europe","14122","82.34","Marketing \ Non-staff advertising","130238493","04/01/2019","Corporate Communications","Communications & Marketing - General","R4317"
"Wolverhampton City Council","http://opendatacommunities.org/id/metropolitan-district-council/wolverhampton","713113","Mall Solutions Europe","14122","-82.34","Marketing \ Non-staff advertising","130238493","04/01/2019","Corporate Communications","Communications & Marketing - General","R4317"
"Wolverhampton City Council","http://opendatacommunities.org/id/metropolitan-district-council/wolverhampton","713113","Mall Solutions Europe","14122","81.18","Marketing \ Non-staff advertising","130238493","04/01/2019","Corporate Communications","Communications & Marketing - General","R4317"
"Wolverhampton City Council","http://opendatacommunities.org/id/metropolitan-district-council/wolverhampton","713189","TenPointNine Tailoring","2879","193.05","Clothing / Uniforms","130237928","09/01/2019","Leisure Services","Bert Williams Leisure Centre","R4201"
"Wolverhampton City Council","http://opendatacommunities.org/id/metropolitan-district-council/wolverhampton","713197","Pears Therapy","RK11122018","3,550.00","Direct Work With Children","130239448","09/01/2019","Children & Young People In Care","Adoption Support Fund","R6310"
"Wolverhampton City Council","http://opendatacommunities.org/id/metropolitan-district-council/wolverhampton","713246","Midland Foods Limited","1181684","214.14","Provisions (Not for resale)","130240787","16/01/2019","Older People Provider Services","Blakenhall Resource Centre","R4101"
"Wolverhampton City Council","http://opendatacommunities.org/id/metropolitan-district-council/wolverhampton","713246","Midland Foods Limited","8718","35.40","Provisions (Not for resale)","130147361","30/01/2019","Older People Provider Services","Blakenhall Resource Centre","R4101"
"Wolverhampton City Council","http://opendatacommunities.org/id/metropolitan-district-council/wolverhampton","713258","MTH Cleaning Equipment Ltd","167696","219.06","Equipment - R & M","130239449","09/01/2019","Parking Services","Short Stay - Civic Centre","R4003"
"Wolverhampton City Council","http://opendatacommunities.org/id/metropolitan-district-council/wolverhampton","713286","Energas","4991084","11.95","Equipment - R & M","190555484","30/01/2019","Fleet Services","Fleet Management","R4003"
"Wolverhampton City Council","http://opendatacommunities.org/id/metropolitan-district-council/wolverhampton","713286","Energas","4991084","47.80","Equipment - R & M","190555484","30/01/2019","Fleet Services","Fleet Management","R4003"
"Wolverhampton City Council","http://opendatacommunities.org/id/metropolitan-district-council/wolverhampton","713286","Energas","4991084","18.98","Equipment - R & M","190555484","30/01/2019","Fleet Services","Fleet Management","R4003"
"Wolverhampton City Council","http://opendatacommunities.org/id/metropolitan-district-council/wolverhampton","713286","Energas","4991084","18.98","Equipment - R & M","190555484","30/01/2019","Fleet Services","Fleet Management","R4003"
"Wolverhampton City Council","http://opendatacommunities.org/id/metropolitan-district-council/wolverhampton","713286","Energas","4991084","9.49","Equipment - R & M","190555484","30/01/2019","Fleet Services","Fleet Management","R4003"
"Wolverhampton City Council","http://opendatacommunities.org/id/metropolitan-district-council/wolverhampton","713313","Northgate Practice","FOS4162","25.00","Services - Professional Fees","190554215","25/01/2019","Children & Young People In Care","Fostering Team & Allowances","R4400"
"Wolverhampton City Council","http://opendatacommunities.org/id/metropolitan-district-council/wolverhampton","713386","NLA Media Access","Q416849","43.26","Services - General Licences","130240442","16/01/2019","Visitor Economy","Marketing of Exhibitions","R4402"
"Wolverhampton City Council","http://opendatacommunities.org/id/metropolitan-district-council/wolverhampton","713386","NLA Media Access","Q416848","432.63","Services - General Licences","130240441","16/01/2019","Visitor Economy","Marketing of Exhibitions","R4402"
"Wolverhampton City Council","http://opendatacommunities.org/id/metropolitan-district-council/wolverhampton","713487","Gandlake Limited","91231","5,000.00","Computing - Maint Agreements","130240030","25/01/2019","Digital Transformation Programme","Digital Transformation Programme","R4534"
"Wolverhampton City Council","http://opendatacommunities.org/id/metropolitan-district-council/wolverhampton","713506","Equita Limited","1010223","130.23","Bailiff Action","130241105","18/01/2019","Parking Services","Parking Enforcement","R9382"
"Wolverhampton City Council","http://opendatacommunities.org/id/metropolitan-district-council/wolverhampton","713548","Jack Moody Recycling Ltd","IN15147","2,166.71","TPP - Recycling Contract","130239779","09/01/2019","Waste and Recycling Service","Waste Collection and Recycling Service - General","R5004"
"Wolverhampton City Council","http://opendatacommunities.org/id/metropolitan-district-council/wolverhampton","713670","Wolverhampton Bid Company Ltd","INV-0479","62.15","Services - Fees and Charges","130238705","16/01/2019","Public Protection","City Centre","R4401"
"Wolverhampton City Council","http://opendatacommunities.org/id/metropolitan-district-council/wolverhampton","713670","Wolverhampton Bid Company Ltd","INV-0480","10,000.00","TPP - Business Improvement District (BID) Levy","190550456","16/01/2019","Revenues & Benefits","Business Improvement District","R5152"
"Wolverhampton City Council","http://opendatacommunities.org/id/metropolitan-district-council/wolverhampton","713670","Wolverhampton Bid Company Ltd","INV-0478","173.00","Services - Fees and Charges","130238704","16/01/2019","Public Protection","City Centre","R4401"
"Wolverhampton City Council","http://opendatacommunities.org/id/metropolitan-district-council/wolverhampton","713670","Wolverhampton Bid Company Ltd","INV-0477","188.00","Services - Fees and Charges","130238703","16/01/2019","Public Protection","City Centre","R4401"
"Wolverhampton City Council","http://opendatacommunities.org/id/metropolitan-district-council/wolverhampton","713670","Wolverhampton Bid Company Ltd","INV-0435","220.00","Services - Fees and Charges","130239450","04/01/2019","Public Protection","City Centre","R4401"
"Wolverhampton City Council","http://opendatacommunities.org/id/metropolitan-district-council/wolverhampton","713670","Wolverhampton Bid Company Ltd","INV-0436","380.00","Services - Fees and Charges","130239451","09/01/2019","Public Protection","City Centre","R4401"
"Wolverhampton City Council","http://opendatacommunities.org/id/metropolitan-district-council/wolverhampton","713737","Miss Poppy�s Cakes","725","143.00","Provisions (Resale)","130239928","30/01/2019","Visitor Economy","Bantock - Tea Rooms","R4102"
"Wolverhampton City Council","http://opendatacommunities.org/id/metropolitan-district-council/wolverhampton","713737","Miss Poppy�s Cakes","726","150.40","Provisions (Resale)","130239929","30/01/2019","Visitor Economy","Art Gallery Tea Room","R4102"
"Wolverhampton City Council","http://opendatacommunities.org/id/metropolitan-district-council/wolverhampton","713737","Miss Poppy�s Cakes","711","71.00","Provisions (Resale)","130239922","09/01/2019","Visitor Economy","Art Gallery Tea Room","R4102"
"Wolverhampton City Council","http://opendatacommunities.org/id/metropolitan-district-council/wolverhampton","713737","Miss Poppy�s Cakes","724","112.50","Provisions (Resale)","130239927","30/01/2019","Visitor Economy","Bantock - Tea Rooms","R4102"
"Wolverhampton City Council","http://opendatacommunities.org/id/metropolitan-district-council/wolverhampton","713737","Miss Poppy�s Cakes","703","74.40","Provisions (Resale)","130239919","09/01/2019","Visitor Economy","Art Gallery Tea Room","R4102"
"Wolverhampton City Council","http://opendatacommunities.org/id/metropolitan-district-council/wolverhampton","713737","Miss Poppy�s Cakes","704","124.40","Provisions (Resale)","130239920","09/01/2019","Visitor Economy","Bantock - Tea Rooms","R4102"
"Wolverhampton City Council","http://opendatacommunities.org/id/metropolitan-district-council/wolverhampton","713737","Miss Poppy�s Cakes","708","108.80","Provisions (Resale)","130239921","09/01/2019","Visitor Economy","Bantock - Tea Rooms","R4102"
"Wolverhampton City Council","http://opendatacommunities.org/id/metropolitan-district-council/wolverhampton","713737","Miss Poppy�s Cakes","712","216.10","Provisions (Resale)","130239923","09/01/2019","Visitor Economy","Bantock - Tea Rooms","R4102"
"Wolverhampton City Council","http://opendatacommunities.org/id/metropolitan-district-council/wolverhampton","713737","Miss Poppy�s Cakes","723","81.00","Provisions (Resale)","130239926","23/01/2019","Visitor Economy","Art Gallery Tea Room","R4102"
"Wolverhampton City Council","http://opendatacommunities.org/id/metropolitan-district-council/wolverhampton","713737","Miss Poppy�s Cakes","722","166.30","Provisions (Resale)","130239925","23/01/2019","Visitor Economy","Bantock - Tea Rooms","R4102"
"Wolverhampton City Council","http://opendatacommunities.org/id/metropolitan-district-council/wolverhampton","713737","Miss Poppy�s Cakes","716","36.20","Provisions (Resale)","130239924","16/01/2019","Visitor Economy","Art Gallery Tea Room","R4102"
"Wolverhampton City Council","http://opendatacommunities.org/id/metropolitan-district-council/wolverhampton","713873","Quartzelec Ltd","7141583","1,089.90","R&M - Departmental planned (external)","130238496","16/01/2019","Maintenance Programme","Centralised R&M","R2001"
"Wolverhampton City Council","http://opendatacommunities.org/id/metropolitan-district-council/wolverhampton","713873","Quartzelec Ltd","7141054","578.20","R&M - Departmental planned (external)","130238494","25/01/2019","Maintenance Programme","Centralised R&M","R2001"
"Wolverhampton City Council","http://opendatacommunities.org/id/metropolitan-district-council/wolverhampton","713987","Fun 4 Kidz Nursery","TFT Spring 2019 Inst 1","6,791.04","TPP - Private Nursery Education Funding","190553192","23/01/2019","Early Years","Early Years Entitlement Funding for Disadvantaged 2 Year Olds","R5035"
"Wolverhampton City Council","http://opendatacommunities.org/id/metropolitan-district-council/wolverhampton","713987","Fun 4 Kidz Nursery","NEF Spring 2019 INST 1","22,797.00","TPP - Private Nursery Education Funding","190553185","23/01/2019","Early Years","Early Years Universal Entitlement for 3 and 4 Year Olds","R5035"
"Wolverhampton City Council","http://opendatacommunities.org/id/metropolitan-district-council/wolverhampton","714033","GeoPlace LLP","98001916","450.00","Subscriptions","130238801","30/01/2019","Operation & Maintenance of Existing Network","NRSWA","R4701"
"Wolverhampton City Council","http://opendatacommunities.org/id/metropolitan-district-council/wolverhampton","714048","Lisa Cawthorn","87","402.20","Services - Professional Fees","130242236","30/01/2019","Children & Young People In Care","Panel Expenses Fostering & Adoption","R4400"
"Wolverhampton City Council","http://opendatacommunities.org/id/metropolitan-district-council/wolverhampton","714048","Lisa Cawthorn","85","388.70","Services - Professional Fees","130238802","02/01/2019","Children & Young People In Care","Panel Expenses Fostering & Adoption","R4400"
"Wolverhampton City Council","http://opendatacommunities.org/id/metropolitan-district-council/wolverhampton","714048","Lisa Cawthorn","86","384.20","Services - Professional Fees","130241419","25/01/2019","Children & Young People In Care","Panel Expenses Fostering & Adoption","R4400"
"Wolverhampton City Council","http://opendatacommunities.org/id/metropolitan-district-council/wolverhampton","714111","SINA Health Centre","FOS4159","78.00","Services - Professional Fees","190550475","16/01/2019","Children & Young People In Care","Fostering Team & Allowances","R4400"
"Wolverhampton City Council","http://opendatacommunities.org/id/metropolitan-district-council/wolverhampton","714111","SINA Health Centre","FOS4158","78.00","Services - Professional Fees","190550474","16/01/2019","Children & Young People In Care","Fostering Team & Allowances","R4400"
"Wolverhampton City Council","http://opendatacommunities.org/id/metropolitan-district-council/wolverhampton","714170","Health and Care","PO755775","58.25","Equipment - Purchase","130241598","23/01/2019","Visitor Economy","Art Gallery","R4000"
"Wolverhampton City Council","http://opendatacommunities.org/id/metropolitan-district-council/wolverhampton","714170","Health and Care","PO755775","58.25","Equipment - Purchase","130241598","23/01/2019","Visitor Economy","Bantock House Museum","R4000"
"Wolverhampton City Council","http://opendatacommunities.org/id/metropolitan-district-council/wolverhampton","714170","Health and Care","PO755775","58.25","Equipment - Purchase","130241598","23/01/2019","Visitor Economy","The Little Civic","R4000"
"Wolverhampton City Council","http://opendatacommunities.org/id/metropolitan-district-council/wolverhampton","714170","Health and Care","PO755775","58.25","Equipment - Purchase","130241598","23/01/2019","Visitor Economy","Bilston Museum","R4000"
"Wolverhampton City Council","http://opendatacommunities.org/id/metropolitan-district-council/wolverhampton","714172","36 Bedford Row","36BR/11","1,800.00","Services - Professional Fees","130239618","23/01/2019","Legal Services","Centralised External Legal Costs","R4400"
"Wolverhampton City Council","http://opendatacommunities.org/id/metropolitan-district-council/wolverhampton","714187","Hortons� Estate Limited","70964","1,500.00","Rent","130239930","09/01/2019","Skills","Connexions Contract","R2200"
"Wolverhampton City Council","http://opendatacommunities.org/id/metropolitan-district-council/wolverhampton","714279","Tusker","SIN0000829769","40.00","Services - Professional Fees","130241800","30/01/2019","Human Resources","Salary Sacrifice Schemes","R4400"
"Wolverhampton City Council","http://opendatacommunities.org/id/metropolitan-district-council/wolverhampton","714279","Tusker","SIN0000782675","532.88","Services - Professional Fees","130237615","09/01/2019","Human Resources","Salary Sacrifice Schemes","R4400"
"Wolverhampton City Council","http://opendatacommunities.org/id/metropolitan-district-council/wolverhampton","714279","Tusker","SIN0000827558","4,385.02","Services - Professional Fees","130241798","30/01/2019","Human Resources","Salary Sacrifice Schemes","R4400"
"Wolverhampton City Council","http://opendatacommunities.org/id/metropolitan-district-council/wolverhampton","714279","Tusker","SIN0000829880","40.00","Services - Professional Fees","130241801","30/01/2019","Human Resources","Salary Sacrifice Schemes","R4400"
"Wolverhampton City Council","http://opendatacommunities.org/id/metropolitan-district-council/wolverhampton","714279","Tusker","11838","23,622.67","Services - Professional Fees","130239780","30/01/2019","Human Resources","Salary Sacrifice Schemes","R4400"
"Wolverhampton City Council","http://opendatacommunities.org/id/metropolitan-district-council/wolverhampton","714279","Tusker","SIN0000806417","2,233.00","Services - Professional Fees","130241796","30/01/2019","Human Resources","Salary Sacrifice Schemes","R4400"
"Wolverhampton City Council","http://opendatacommunities.org/id/metropolitan-district-council/wolverhampton","714279","Tusker","SIN0000806248","277.14","Services - Professional Fees","130240794","18/01/2019","Human Resources","Salary Sacrifice Schemes","R4400"
"Wolverhampton City Council","http://opendatacommunities.org/id/metropolitan-district-council/wolverhampton","714279","Tusker","SIN0000806248","46.46","Services - Professional Fees","130240794","18/01/2019","Human Resources","Salary Sacrifice Schemes","R4400"
"Wolverhampton City Council","http://opendatacommunities.org/id/metropolitan-district-council/wolverhampton","714279","Tusker","10836","25,007.76","Services - Professional Fees","130240793","23/01/2019","Human Resources","Salary Sacrifice Schemes","R4400"
"Wolverhampton City Council","http://opendatacommunities.org/id/metropolitan-district-council/wolverhampton","714279","Tusker","SIN0000806363","429.00","Services - Professional Fees","130238498","04/01/2019","Human Resources","Salary Sacrifice Schemes","R4400"
"Wolverhampton City Council","http://opendatacommunities.org/id/metropolitan-district-council/wolverhampton","714279","Tusker","SIN0000806363","-429.00","Services - Professional Fees","130238498","04/01/2019","Human Resources","Salary Sacrifice Schemes","R4400"
"Wolverhampton City Council","http://opendatacommunities.org/id/metropolitan-district-council/wolverhampton","714279","Tusker","SIN0000806363","429.00","Services - Professional Fees","130238498","04/01/2019","Human Resources","Salary Sacrifice Schemes","R4400"
"Wolverhampton City Council","http://opendatacommunities.org/id/metropolitan-district-council/wolverhampton","714309","Excel Tuition Services Ltd","1086","625.05","TPP - Alternative Provision of Education","130240796","16/01/2019","Special Educational Needs","SEN Education OOC","R5037"
"Wolverhampton City Council","http://opendatacommunities.org/id/metropolitan-district-council/wolverhampton","714313","Midcounties - Finchfield Nursery","NEF Spring 2019 INST 1","48,814.65","TPP - Private Nursery Education Funding","190553185","23/01/2019","Early Years","Early Years Universal Entitlement for 3 and 4 Year Olds","R5035"
"Wolverhampton City Council","http://opendatacommunities.org/id/metropolitan-district-council/wolverhampton","714313","Midcounties - Finchfield Nursery","TFT Spring 2019 Inst 1","6,097.79","TPP - Private Nursery Education Funding","190553192","23/01/2019","Early Years","Early Years Entitlement Funding for Disadvantaged 2 Year Olds","R5035"
"Wolverhampton City Council","http://opendatacommunities.org/id/metropolitan-district-council/wolverhampton","714316","Little Oaks Day Nursery","TFT Spring 2019 Inst 1","8,771.76","TPP - Private Nursery Education Funding","190553192","23/01/2019","Early Years","Early Years Entitlement Funding for Disadvantaged 2 Year Olds","R5035"
"Wolverhampton City Council","http://opendatacommunities.org/id/metropolitan-district-council/wolverhampton","714316","Little Oaks Day Nursery","NEF Spring 2019 INST 1","56,457.00","TPP - Private Nursery Education Funding","190553185","23/01/2019","Early Years","Early Years Universal Entitlement for 3 and 4 Year Olds","R5035"
"Wolverhampton City Council","http://opendatacommunities.org/id/metropolitan-district-council/wolverhampton","715677","Eversheds LLP","91775679","2,205.00","Acquisition of Land and Buildings","130237538","23/01/2019","-","i54 Access and Infrastructure","C1000"
"Wolverhampton City Council","http://opendatacommunities.org/id/metropolitan-district-council/wolverhampton","715688","Sterling Filtration Limited","130142","151.20","Equipment - Purchase","190548863","11/01/2019","Fleet Services","Fleet Management","R4000"
"Wolverhampton City Council","http://opendatacommunities.org/id/metropolitan-district-council/wolverhampton","715785","N A Brown Limited","29386","795.00","Equipment - Purchase","130239781","09/01/2019","Environmental Maintenance","Ground Maintenance East","R4000"
"Wolverhampton City Council","http://opendatacommunities.org/id/metropolitan-district-council/wolverhampton","715785","N A Brown Limited","29386","615.00","Equipment - Purchase","130239781","09/01/2019","Environmental Maintenance","Ground Maintenance East","R4000"
"Wolverhampton City Council","http://opendatacommunities.org/id/metropolitan-district-council/wolverhampton","715785","N A Brown Limited","29386","1,855.00","Equipment - Purchase","130239781","09/01/2019","Environmental Maintenance","Ground Maintenance East","R4000"
"Wolverhampton City Council","http://opendatacommunities.org/id/metropolitan-district-council/wolverhampton","715785","N A Brown Limited","29386","1,435.00","Equipment - Purchase","130239781","09/01/2019","Environmental Maintenance","Ground Maintenance East","R4000"
"Wolverhampton City Council","http://opendatacommunities.org/id/metropolitan-district-council/wolverhampton","715934","BES Utilities","000705805","19.64","Electricity","190554194","25/01/2019","City Development","Southside","R2100"
"Wolverhampton City Council","http://opendatacommunities.org/id/metropolitan-district-council/wolverhampton","715934","BES Utilities","000788255","20.97","Electricity","190554193","25/01/2019","City Development","Southside","R2100"
"Wolverhampton City Council","http://opendatacommunities.org/id/metropolitan-district-council/wolverhampton","715934","BES Utilities","000805936","20.31","Electricity","190551693","18/01/2019","City Development","Southside","R2100"
"Wolverhampton City Council","http://opendatacommunities.org/id/metropolitan-district-council/wolverhampton","715934","BES Utilities","000854562","21.15","Electricity","190551694","18/01/2019","City Development","Southside","R2100"
"Wolverhampton City Council","http://opendatacommunities.org/id/metropolitan-district-council/wolverhampton","715947","Micropathology Ltd","I0012243","150.00","Services - Professional Fees","130239254","11/01/2019","Public Service Reform","Coroners Service","R4400"
"Wolverhampton City Council","http://opendatacommunities.org/id/metropolitan-district-council/wolverhampton","715951","Kate Tilley","KT-W-10a-18(W-Q-68)","75.00","Services - Professional Fees","130241502","23/01/2019","Visitor Economy","Art Galleries - Schools Art SLA Service","R4400"
"Wolverhampton City Council","http://opendatacommunities.org/id/metropolitan-district-council/wolverhampton","715951","Kate Tilley","KT-W-09-18(W-Q-66)","75.00","Services - Professional Fees","130239619","04/01/2019","Visitor Economy","Art Galleries - Schools Art SLA Service","R4400"
"Wolverhampton City Council","http://opendatacommunities.org/id/metropolitan-district-council/wolverhampton","715951","Kate Tilley","KT-W-10-18(W-Q-67)","75.00","Services - Professional Fees","130240162","11/01/2019","Visitor Economy","Art Galleries - Schools Art SLA Service","R4400"
"Wolverhampton City Council","http://opendatacommunities.org/id/metropolitan-district-council/wolverhampton","715951","Kate Tilley","KT-W-11A-18(W-Q-71)","125.00","Services - Professional Fees","130239620","04/01/2019","Visitor Economy","Art Galleries - Schools Art SLA Service","R4400"
"Wolverhampton City Council","http://opendatacommunities.org/id/metropolitan-district-council/wolverhampton","715951","Kate Tilley","KT-W-11-18(W-Q-70)","75.00","Services - Professional Fees","130241503","23/01/2019","Visitor Economy","Art Galleries - Schools Art SLA Service","R4400"
"Wolverhampton City Council","http://opendatacommunities.org/id/metropolitan-district-council/wolverhampton","715951","Kate Tilley","KT-W-10b-18(W-Q-69)","125.00","Services - Professional Fees","130241500","25/01/2019","Visitor Economy","Education And Access","R4400"
"Wolverhampton City Council","http://opendatacommunities.org/id/metropolitan-district-council/wolverhampton","716001","Sigma Surveying Services Limited","00001331/MAS","18,600.00","Services - Professional Fees","130240032","30/01/2019","Procurement Services","Corporate Procurement Unit","R4400"
"Wolverhampton City Council","http://opendatacommunities.org/id/metropolitan-district-council/wolverhampton","716010","Kingdom Security Limited","0000500426","12,420.00","Services - Professional Fees","130239931","25/01/2019","Public Protection","Environmental Crime","R4400"
"Wolverhampton City Council","http://opendatacommunities.org/id/metropolitan-district-council/wolverhampton","716013","WA Products (UK) Ltd","SIN266749","17.55","Equipment - Purchase","130238706","09/01/2019","Public Protection","Environmental Crime and Consumer Protection","R4000"
"Wolverhampton City Council","http://opendatacommunities.org/id/metropolitan-district-council/wolverhampton","716013","WA Products (UK) Ltd","SIN266749","15.00","Equipment - Purchase","130238706","09/01/2019","Public Protection","Environmental Crime and Consumer Protection","R4000"
"Wolverhampton City Council","http://opendatacommunities.org/id/metropolitan-district-council/wolverhampton","716022","Marshall Street Furniture","KZJK008878","19,100.00","Construction and Conversion","130240797","23/01/2019","-","Integrated Transport","C1100"
"Wolverhampton City Council","http://opendatacommunities.org/id/metropolitan-district-council/wolverhampton","716039","St Mary�s Church Bushbury","H90","30.00","Room Hire","130240798","23/01/2019","Community Safety","SWP - Infrastructure","R2201"
"Wolverhampton City Council","http://opendatacommunities.org/id/metropolitan-district-council/wolverhampton","716118","The Ashmore Play Hub Ltd","NEF Spring 2019 INST 1","8,537.40","TPP - Private Nursery Education Funding","190553185","23/01/2019","Early Years","Early Years Universal Entitlement for 3 and 4 Year Olds","R5035"
"Wolverhampton City Council","http://opendatacommunities.org/id/metropolitan-district-council/wolverhampton","716118","The Ashmore Play Hub Ltd","TFT Spring 2019 Inst 1","6,111.94","TPP - Private Nursery Education Funding","190553192","23/01/2019","Early Years","Early Years Entitlement Funding for Disadvantaged 2 Year Olds","R5035"
"Wolverhampton City Council","http://opendatacommunities.org/id/metropolitan-district-council/wolverhampton","716118","The Ashmore Play Hub Ltd","PA000114","585.00","TPP - Child Care provided for client","130238065","09/01/2019","Adult Education","Discretionary Fund","R5034"
"Wolverhampton City Council","http://opendatacommunities.org/id/metropolitan-district-council/wolverhampton","716150","Cross Road Surgery","FOS4161","78.86","Services - Professional Fees","190550477","16/01/2019","Children & Young People In Care","Fostering Team & Allowances","R4400"
"Wolverhampton City Council","http://opendatacommunities.org/id/metropolitan-district-council/wolverhampton","716150","Cross Road Surgery","FOS4160","78.86","Services - Professional Fees","190550476","16/01/2019","Children & Young People In Care","Fostering Team & Allowances","R4400"
"Wolverhampton City Council","http://opendatacommunities.org/id/metropolitan-district-council/wolverhampton","716224","Homers Travel","460","750.00","Client Transport","130239017","09/01/2019","Special Educational Needs","Special - Transport","R3042"
"Wolverhampton City Council","http://opendatacommunities.org/id/metropolitan-district-council/wolverhampton","716227","Ascentis Awarding Body","62712","16.00","Exam Expenses (Non-Employee)","130239452","09/01/2019","Adult Education","Discretionary Fund","R4630"
"Wolverhampton City Council","http://opendatacommunities.org/id/metropolitan-district-council/wolverhampton","716227","Ascentis Awarding Body","61814","900.00","Exam Expenses (Non-Employee)","130240334","11/01/2019","Adult Education","Discretionary Fund","R4630"
"Wolverhampton City Council","http://opendatacommunities.org/id/metropolitan-district-council/wolverhampton","716227","Ascentis Awarding Body","62833","150.00","Exam Expenses (Non-Employee)","130240337","16/01/2019","Adult Education","Discretionary Fund","R4630"
"Wolverhampton City Council","http://opendatacommunities.org/id/metropolitan-district-council/wolverhampton","716227","Ascentis Awarding Body","62951","150.00","Exam Expenses (Non-Employee)","130240338","16/01/2019","Adult Education","Discretionary Fund","R4630"
"Wolverhampton City Council","http://opendatacommunities.org/id/metropolitan-district-council/wolverhampton","716227","Ascentis Awarding Body","62637","150.00","Exam Expenses (Non-Employee)","130240335","16/01/2019","Adult Education","Discretionary Fund","R4630"
"Wolverhampton City Council","http://opendatacommunities.org/id/metropolitan-district-council/wolverhampton","716227","Ascentis Awarding Body","62832","50.00","Exam Expenses (Non-Employee)","130240336","16/01/2019","Adult Education","Discretionary Fund","R4630"
"Wolverhampton City Council","http://opendatacommunities.org/id/metropolitan-district-council/wolverhampton","716246","One 4 You Services Ltd","7540","1,014.00","Client Transport","130239023","16/01/2019","Special Educational Needs","Special - Transport","R3042"
"Wolverhampton City Council","http://opendatacommunities.org/id/metropolitan-district-council/wolverhampton","716246","One 4 You Services Ltd","7542","937.50","Client Transport","130239025","16/01/2019","Special Educational Needs","Special - Transport","R3042"
"Wolverhampton City Council","http://opendatacommunities.org/id/metropolitan-district-council/wolverhampton","716246","One 4 You Services Ltd","7541","1,944.60","Client Transport","130239024","16/01/2019","Special Educational Needs","Special - Transport","R3042"
"Wolverhampton City Council","http://opendatacommunities.org/id/metropolitan-district-council/wolverhampton","716246","One 4 You Services Ltd","7542A","1,042.50","Client Transport","130240033","16/01/2019","Special Educational Needs","Secondary- Transport","R3042"
"Wolverhampton City Council","http://opendatacommunities.org/id/metropolitan-district-council/wolverhampton","716246","One 4 You Services Ltd","5476","1,399.50","Client Transport","130149340","09/01/2019","Special Educational Needs","Special - Transport","R3042"
"Wolverhampton City Council","http://opendatacommunities.org/id/metropolitan-district-council/wolverhampton","716246","One 4 You Services Ltd","5479","1,435.00","Client Transport","130149343","09/01/2019","Special Educational Needs","Special - Transport","R3042"
"Wolverhampton City Council","http://opendatacommunities.org/id/metropolitan-district-council/wolverhampton","716319","Patrick J J Rollinson","PJR/77","1,850.00","R&M - Departmental planned (internal)","130238222","09/01/2019","Maintenance Programme","Centralised R&M","R2000"
"Wolverhampton City Council","http://opendatacommunities.org/id/metropolitan-district-council/wolverhampton","716354","Mangar International Ltd","0000183904 - Credit Correction","49.35","Equipment - R & M","130239167","02/01/2019","Independent Living Service","Independent Living Service","R4003"
"Wolverhampton City Council","http://opendatacommunities.org/id/metropolitan-district-council/wolverhampton","716354","Mangar International Ltd","0000192791","731.00","Equipment - Purchase","130238499","11/01/2019","Older People Provider Services","ILS Stores","R4000"
"Wolverhampton City Council","http://opendatacommunities.org/id/metropolitan-district-council/wolverhampton","716354","Mangar International Ltd","0000192791","10.21","Comms - Postage","130238499","11/01/2019","Older People Provider Services","ILS Stores","R4503"
"Wolverhampton City Council","http://opendatacommunities.org/id/metropolitan-district-council/wolverhampton","716357","Carter Brown The Expert Service","146851","2,235.00","Services - Professional Fees","130240339","18/01/2019","Legal Services","Centralised External Legal Costs","R4400"
"Wolverhampton City Council","http://opendatacommunities.org/id/metropolitan-district-council/wolverhampton","716362","LHi Group Ltd/Lawrence Harvey","118202","5,985.00","Agency Staff","130237076","02/01/2019","Strategic Finance","Agresso System Support","R1100"
"Wolverhampton City Council","http://opendatacommunities.org/id/metropolitan-district-council/wolverhampton","716369","Armstrong Bell Ltd","0029013","198.67","Comms - Telephone Call charges","130238500","30/01/2019","Skills","Connexions Contract","R4505"
"Wolverhampton City Council","http://opendatacommunities.org/id/metropolitan-district-council/wolverhampton","716369","Armstrong Bell Ltd","0029399","179.75","Comms - Telephone Call charges","130241057","30/01/2019","Skills","Connexions Contract","R4505"
"Wolverhampton City Council","http://opendatacommunities.org/id/metropolitan-district-council/wolverhampton","716379","CN Unwin Limited","0000076916","90.00","Equipment - Purchase","130241805","25/01/2019","Transportation","Passenger Transport - General","R4000"
"Wolverhampton City Council","http://opendatacommunities.org/id/metropolitan-district-council/wolverhampton","716379","CN Unwin Limited","0000076916","10.00","Equipment - Purchase","130241805","25/01/2019","Transportation","Passenger Transport - General","R4000"
"Wolverhampton City Council","http://opendatacommunities.org/id/metropolitan-district-council/wolverhampton","716394","CPR Works Ltd","5691","175.00","Services - Professional Fees","130239453","04/01/2019","School Planning & Resources","Music Support Team","R4400"
"Wolverhampton City Council","http://opendatacommunities.org/id/metropolitan-district-council/wolverhampton","716394","CPR Works Ltd","5761","25.00","Services - Professional Fees","130239454","04/01/2019","School Planning & Resources","Music Support Team","R4400"
"Wolverhampton City Council","http://opendatacommunities.org/id/metropolitan-district-council/wolverhampton","716547","Teeny Tots Playgroup Ltd","TFT Spring 2019 Inst 1","7,922.88","TPP - Private Nursery Education Funding","190553192","23/01/2019","Early Years","Early Years Entitlement Funding for Disadvantaged 2 Year Olds","R5035"
"Wolverhampton City Council","http://opendatacommunities.org/id/metropolitan-district-council/wolverhampton","716547","Teeny Tots Playgroup Ltd","NEF Spring 2019 INST 1","7,344.00","TPP - Private Nursery Education Funding","190553185","23/01/2019","Early Years","Early Years Universal Entitlement for 3 and 4 Year Olds","R5035"
"Wolverhampton City Council","http://opendatacommunities.org/id/metropolitan-district-council/wolverhampton","716575","Karen Broomhall","NEF Spring 2019 INST 1","38.25","TPP - Private Nursery Education Funding","190553185","23/01/2019","Early Years","Early Years Universal Entitlement for 3 and 4 Year Olds","R5035"
"Wolverhampton City Council","http://opendatacommunities.org/id/metropolitan-district-council/wolverhampton","716575","Karen Broomhall","NEF Spring 2019 INST 1 Addition","2,256.75","TPP - Private Nursery Education Funding","190553200","23/01/2019","Early Years","Early Years Universal Entitlement for 3 and 4 Year Olds","R5035"
"Wolverhampton City Council","http://opendatacommunities.org/id/metropolitan-district-council/wolverhampton","716584","Atkins Limited","18015701RE-ISSUE","8,454.47","Services - Professional Fees","130241058","23/01/2019","School Planning & Resources","Primary Expansion Feasibility Work","R4400"
"Wolverhampton City Council","http://opendatacommunities.org/id/metropolitan-district-council/wolverhampton","716584","Atkins Limited","18049102","7,536.62","Services - Professional Fees","130237540","11/01/2019","Capital Programme","Capital Programme Team","R4400"
"Wolverhampton City Council","http://opendatacommunities.org/id/metropolitan-district-council/wolverhampton","716584","Atkins Limited","18049749","20,600.00","External Professional Fees","130239933","09/01/2019","-","GF - LGF Feasibility","C6002"
"Wolverhampton City Council","http://opendatacommunities.org/id/metropolitan-district-council/wolverhampton","716584","Atkins Limited","18002144","-15,000.00","External Professional Fees","130239026","16/01/2019","-","GF - LGF Feasibility","C6002"
"Wolverhampton City Council","http://opendatacommunities.org/id/metropolitan-district-council/wolverhampton","716584","Atkins Limited","18052283","21,150.00","Services - Professional Fees","130239027","16/01/2019","Procurement Services","Corporate Procurement Unit","R4400"
"Wolverhampton City Council","http://opendatacommunities.org/id/metropolitan-district-council/wolverhampton","716584","Atkins Limited","18050930","40,000.00","External Professional Fees","130238707","16/01/2019","-","Primary Expansion Programme","C6002"
"Wolverhampton City Council","http://opendatacommunities.org/id/metropolitan-district-council/wolverhampton","716584","Atkins Limited","18042773","11,000.00","Services - Professional Fees","130233809","04/01/2019","Procurement Services","Corporate Procurement Unit","R4400"
"Wolverhampton City Council","http://opendatacommunities.org/id/metropolitan-district-council/wolverhampton","716584","Atkins Limited","18001682","-31,913.00","Services - Professional Fees","130232920","04/01/2019","School Planning & Resources","Primary Expansion Feasibility Work","R4400"
"Wolverhampton City Council","http://opendatacommunities.org/id/metropolitan-district-council/wolverhampton","716584","Atkins Limited","18001679","-61,263.39","Services - Professional Fees","130232918","04/01/2019","School Planning & Resources","Primary Expansion Feasibility Work","R4400"
"Wolverhampton City Council","http://opendatacommunities.org/id/metropolitan-district-council/wolverhampton","716584","Atkins Limited","18045433","12,000.00","Services - Professional Fees","130235615","04/01/2019","Procurement Services","Corporate Procurement Unit","R4400"
"Wolverhampton City Council","http://opendatacommunities.org/id/metropolitan-district-council/wolverhampton","716584","Atkins Limited","18049726","4,652.55","Services - Professional Fees","130238223","09/01/2019","City Development","City Centre Public Realm","R4400"
"Wolverhampton City Council","http://opendatacommunities.org/id/metropolitan-district-council/wolverhampton","716584","Atkins Limited","18049742","2,100.00","External Professional Fees","130238225","09/01/2019","-","GF - LGF Feasibility","C6002"
"Wolverhampton City Council","http://opendatacommunities.org/id/metropolitan-district-council/wolverhampton","716584","Atkins Limited","18049110","10,000.00","Construction and Conversion","130237541","04/01/2019","-","Tap Works site","C1100"
"Wolverhampton City Council","http://opendatacommunities.org/id/metropolitan-district-council/wolverhampton","716584","Atkins Limited","18042313","44,895.85","External Professional Fees","130233121","04/01/2019","-","Future Spaces","C6002"
"Wolverhampton City Council","http://opendatacommunities.org/id/metropolitan-district-council/wolverhampton","716584","Atkins Limited","18049132","12,000.00","Services - Professional Fees","130237750","04/01/2019","Procurement Services","Corporate Procurement Unit","R4400"
"Wolverhampton City Council","http://opendatacommunities.org/id/metropolitan-district-council/wolverhampton","716584","Atkins Limited","18043524","15,000.00","Construction and Conversion","130234200","04/01/2019","-","GF - Leisure Centres Enhancement","C1100"
"Wolverhampton City Council","http://opendatacommunities.org/id/metropolitan-district-council/wolverhampton","716584","Atkins Limited","18001680","-8,454.47","Services - Professional Fees","130232919","23/01/2019","School Planning & Resources","Primary Expansion Feasibility Work","R4400"
"Wolverhampton City Council","http://opendatacommunities.org/id/metropolitan-district-council/wolverhampton","716584","Atkins Limited","18043543","15,000.00","External Professional Fees","130234384","23/01/2019","-","GF - LGF Feasibility","C6002"
"Wolverhampton City Council","http://opendatacommunities.org/id/metropolitan-district-council/wolverhampton","716588","Magna large Print Books","I110348","86.74","Books","130240154","18/01/2019","Local Economy","Global Budgets","R4309"
"Wolverhampton City Council","http://opendatacommunities.org/id/metropolitan-district-council/wolverhampton","716588","Magna large Print Books","I110347","87.68","Books","130240153","23/01/2019","Local Economy","Global Budgets","R4309"
"Wolverhampton City Council","http://opendatacommunities.org/id/metropolitan-district-council/wolverhampton","716588","Magna large Print Books","I109940","215.80","Books","130239256","04/01/2019","Local Economy","Global Budgets","R4309"
"Wolverhampton City Council","http://opendatacommunities.org/id/metropolitan-district-council/wolverhampton","716588","Magna large Print Books","I109939","351.77","Books","130239255","04/01/2019","Local Economy","Global Budgets","R4309"
"Wolverhampton City Council","http://opendatacommunities.org/id/metropolitan-district-council/wolverhampton","716594","Burke Bros Recovery","G40416","70.00","Services - Professional Fees","190548947","11/01/2019","Fleet Services","Fleet Management","R4400"
"Wolverhampton City Council","http://opendatacommunities.org/id/metropolitan-district-council/wolverhampton","716594","Burke Bros Recovery","G41259","70.00","Services - Professional Fees","190555504","30/01/2019","Fleet Services","Fleet Management","R4400"
"Wolverhampton City Council","http://opendatacommunities.org/id/metropolitan-district-council/wolverhampton","716594","Burke Bros Recovery","G41414","70.00","Services - Professional Fees","190555505","30/01/2019","Fleet Services","Fleet Management","R4400"
"Wolverhampton City Council","http://opendatacommunities.org/id/metropolitan-district-council/wolverhampton","716594","Burke Bros Recovery","G41451","70.00","Services - Professional Fees","190555506","30/01/2019","Fleet Services","Fleet Management","R4400"
"Wolverhampton City Council","http://opendatacommunities.org/id/metropolitan-district-council/wolverhampton","716626","West Midlands Parks Forum","2018/19SUB/24","250.00","Subscriptions","130240801","23/01/2019","Environmental Maintenance","Management & Administration","R4701"
"Wolverhampton City Council","http://opendatacommunities.org/id/metropolitan-district-council/wolverhampton","716630","Tiger Communications Plc","21755","2,245.09","Computing - Maint Agreements","130238933","04/01/2019","ICTS","Strategic ICTS (ICT Service Budget)","R4534"
"Wolverhampton City Council","http://opendatacommunities.org/id/metropolitan-district-council/wolverhampton","716676","Wesco Limited","IX135363","156.00","Equipment - Purchase","130239455","04/01/2019","Special Educational Needs","SEN Early Years Team","R4000"
"Wolverhampton City Council","http://opendatacommunities.org/id/metropolitan-district-council/wolverhampton","716676","Wesco Limited","IX135363","3.50","Equipment - Purchase","130239455","04/01/2019","Special Educational Needs","SEN Early Years Team","R4000"
"Wolverhampton City Council","http://opendatacommunities.org/id/metropolitan-district-council/wolverhampton","716717","Pre-Paid Financial Services Ltd","12305-WOLVERHAMPTONCOUNCIL-1218","4,023.79","Services - Supplies and Services to service users","130239782","25/01/2019","Community Financial Support","Direct Payments Client Admin","R4408"
"Wolverhampton City Council","http://opendatacommunities.org/id/metropolitan-district-council/wolverhampton","716767","KINGSTON - Northern House Academy","NHAT_0661","2,764.50","TPP - Alternative Provision of Education","130239257","04/01/2019","Inclusion Support","Alternative Provision","R5037"
"Wolverhampton City Council","http://opendatacommunities.org/id/metropolitan-district-council/wolverhampton","716776","NHS Supply Chain","1019176323","760.83","TPP - Public Health Contracts","130238227","02/01/2019","Starting and Developing Well","Healthy Start to Life","R5060"
"Wolverhampton City Council","http://opendatacommunities.org/id/metropolitan-district-council/wolverhampton","716806","Peak Activity Services Ltd","3999","19,470.00","TPP - Alternative Provision of Education","130239497","04/01/2019","Special Educational Needs","SEN Education OOC","R5037"
"Wolverhampton City Council","http://opendatacommunities.org/id/metropolitan-district-council/wolverhampton","716806","Peak Activity Services Ltd","3989","11,505.00","TPP - Alternative Provision of Education","130239495","04/01/2019","Special Educational Needs","SEN Education OOC","R5037"
"Wolverhampton City Council","http://opendatacommunities.org/id/metropolitan-district-council/wolverhampton","716806","Peak Activity Services Ltd","4000","19,470.00","TPP - Alternative Provision of Education","130239496","04/01/2019","Special Educational Needs","SEN Education OOC","R5037"
"Wolverhampton City Council","http://opendatacommunities.org/id/metropolitan-district-council/wolverhampton","716880","Gail Little","NEF Spring 2019 INST 1","918.00","TPP - Private Nursery Education Funding","190553185","23/01/2019","Early Years","Early Years Universal Entitlement for 3 and 4 Year Olds","R5035"
"Wolverhampton City Council","http://opendatacommunities.org/id/metropolitan-district-council/wolverhampton","716904","Lawyers in Local Government","2511","219.00","Conference Expenses","130241604","23/01/2019","Legal Services","Legal Services","R4611"
"Wolverhampton City Council","http://opendatacommunities.org/id/metropolitan-district-council/wolverhampton","716985","Potton Kare Services Ltd","P19641920190118","750.90","Client Allowances","190552316","23/01/2019","Children & Young People In Care","Looked After Team 1","R6301"
"Wolverhampton City Council","http://opendatacommunities.org/id/metropolitan-district-council/wolverhampton","717004","Highfields Academy School","HCLI SEN Payment for 2018-19","2,812.96","Grant Payments","190545443","02/01/2019","Central Education","Secondary ISB","R4700"
"Wolverhampton City Council","http://opendatacommunities.org/id/metropolitan-district-council/wolverhampton","717045","Exactrak - Avery Weigh Tronix","SLS/50356842","495.00","Equipment - R & M","130239621","16/01/2019","Highways Maintenance","Winter Maintenance","R4003"
"Wolverhampton City Council","http://opendatacommunities.org/id/metropolitan-district-council/wolverhampton","717046","NW Environmental Limited","00178","3,750.00","Services - Consultants","130239622","30/01/2019","City Development","Bilston Public Open Space (ERDF)","R4404"
"Wolverhampton City Council","http://opendatacommunities.org/id/metropolitan-district-council/wolverhampton","717072","Pick Everard","56809","9,660.00","Services - Professional Fees","130239028","16/01/2019","Capital Programme","Capital Programme Team","R4400"
"Wolverhampton City Council","http://opendatacommunities.org/id/metropolitan-district-council/wolverhampton","717075","Tracsis Traffic Data Limited","I18100171T","2,485.00","TPP - Maintenance on Principal Roads","130238949","09/01/2019","Transportation","School Crossing Patrol","R5700"
"Wolverhampton City Council","http://opendatacommunities.org/id/metropolitan-district-council/wolverhampton","717125","New Chapters Fostercare","P195909 03021920190114","2,843.36","TPP - Placement Foster Care Agency","190550142","16/01/2019","Children & Young People In Care","Out of City Placements","R5602"
"Wolverhampton City Council","http://opendatacommunities.org/id/metropolitan-district-council/wolverhampton","717125","New Chapters Fostercare","P195909 03021920190114","2,759.32","TPP - Placement Foster Care Agency","190550142","16/01/2019","Children & Young People In Care","Out of City Placements","R5602"
"Wolverhampton City Council","http://opendatacommunities.org/id/metropolitan-district-council/wolverhampton","717125","New Chapters Fostercare","P195909 03021920190114","2,628.00","TPP - Placement Foster Care Agency","190550142","16/01/2019","Children & Young People In Care","Out of City Placements","R5602"
"Wolverhampton City Council","http://opendatacommunities.org/id/metropolitan-district-council/wolverhampton","717125","New Chapters Fostercare","P195909 03021920190114","2,775.20","TPP - Placement Foster Care Agency","190550142","16/01/2019","Children & Young People In Care","Out of City Placements","R5602"
"Wolverhampton City Council","http://opendatacommunities.org/id/metropolitan-district-council/wolverhampton","717164","Adoption Focus","FSAF18715","31,000.00","TPP - Payments to voluntary groups","130240341","16/01/2019","Children & Young People In Care","Adoption and Residence Team & Allowances","R5200"
"Wolverhampton City Council","http://opendatacommunities.org/id/metropolitan-district-council/wolverhampton","717189","Bromford Housing Group Limited","P195681 03021920190114","4,537.96","TPP - Residential Care - Long Term","190550377","16/01/2019","Learning Disabilities Care Purchasing","LD Care Purchasing (Spot Placements)","R5400"
"Wolverhampton City Council","http://opendatacommunities.org/id/metropolitan-district-council/wolverhampton","717189","Bromford Housing Group Limited","P195681 03021920190114","4,537.96","TPP - Residential Care - Long Term","190550377","16/01/2019","Learning Disabilities Care Purchasing","LD Care Purchasing (Spot Placements)","R5400"
"Wolverhampton City Council","http://opendatacommunities.org/id/metropolitan-district-council/wolverhampton","717189","Bromford Housing Group Limited","P195681 03021920190114","5,192.00","TPP - Residential Care - Short Term","190550377","16/01/2019","Learning Disabilities Care Purchasing","LD Care Purchasing (Spot Placements)","R5401"
"Wolverhampton City Council","http://opendatacommunities.org/id/metropolitan-district-council/wolverhampton","717189","Bromford Housing Group Limited","P195681 03021920190114","4,536.00","TPP - Residential Care - Long Term","190550377","16/01/2019","Learning Disabilities Care Purchasing","LD Care Purchasing (Spot Placements)","R5400"
"Wolverhampton City Council","http://opendatacommunities.org/id/metropolitan-district-council/wolverhampton","717189","Bromford Housing Group Limited","P195681 03021920190114","4,537.96","TPP - Residential Care - Long Term","190550377","16/01/2019","Learning Disabilities Care Purchasing","LD Care Purchasing (Spot Placements)","R5400"
"Wolverhampton City Council","http://opendatacommunities.org/id/metropolitan-district-council/wolverhampton","717189","Bromford Housing Group Limited","P195681 03021920190114","4,537.96","TPP - Residential Care - Long Term","190550377","16/01/2019","Learning Disabilities Care Purchasing","LD Care Purchasing (Spot Placements)","R5400"
"Wolverhampton City Council","http://opendatacommunities.org/id/metropolitan-district-council/wolverhampton","717189","Bromford Housing Group Limited","P195681 03021920190114","4,537.96","TPP - Residential Care - Long Term","190550377","16/01/2019","Learning Disabilities Care Purchasing","LD Care Purchasing (Spot Placements)","R5400"
"Wolverhampton City Council","http://opendatacommunities.org/id/metropolitan-district-council/wolverhampton","717191","Movecorp Limited","107642","50.00","Storage","130240874","18/01/2019","Community Financial Support","Welfare Rights","R4910"
"Wolverhampton City Council","http://opendatacommunities.org/id/metropolitan-district-council/wolverhampton","717191","Movecorp Limited","110270","2,023.00","Storage","130238501","23/01/2019","Corporate Asset Management","Centralised Planned Maintenance","R4910"
"Wolverhampton City Council","http://opendatacommunities.org/id/metropolitan-district-council/wolverhampton","717191","Movecorp Limited","109942","316.00","Storage","130237204","02/01/2019","Adult Education","Beckminster","R4910"
"Wolverhampton City Council","http://opendatacommunities.org/id/metropolitan-district-council/wolverhampton","717191","Movecorp Limited","110555","175.00","Storage","130239623","30/01/2019","Corporate Asset Management","Strategic Asset Management Team","R4910"
"Wolverhampton City Council","http://opendatacommunities.org/id/metropolitan-district-council/wolverhampton","717191","Movecorp Limited","109982","864.00","Storage","130242380","30/01/2019","Visitor Economy","Civic Halls - CHIP","R4910"
"Wolverhampton City Council","http://opendatacommunities.org/id/metropolitan-district-council/wolverhampton","717191","Movecorp Limited","110325","490.00","Storage","130238711","16/01/2019","Children & Young People In Care","Head of Service - LAC","R4910"
"Wolverhampton City Council","http://opendatacommunities.org/id/metropolitan-district-council/wolverhampton","717256","GovDelivery Inc","101961","1,420.25","Marketing \ Non-staff advertising","130226203","02/01/2019","Corporate Communications","Communications & Marketing - General","R4317"
"Wolverhampton City Council","http://opendatacommunities.org/id/metropolitan-district-council/wolverhampton","717328","Midland Forestry Limited","16392","4,410.00","Construction and Conversion","130239934","30/01/2019","-","GF - Blue Network","C1100"
"Wolverhampton City Council","http://opendatacommunities.org/id/metropolitan-district-council/wolverhampton","717406","Cooksongold","BI1902495","96.65","Equipment - Purchase","130238256","02/01/2019","Adult Education","Continuing Education","R4000"
"Wolverhampton City Council","http://opendatacommunities.org/id/metropolitan-district-council/wolverhampton","717406","Cooksongold","BI1902495","9.46","Comms - Postage","130238256","02/01/2019","Adult Education","Continuing Education","R4503"
"Wolverhampton City Council","http://opendatacommunities.org/id/metropolitan-district-council/wolverhampton","717406","Cooksongold","BI1902492","55.06","Equipment - Purchase","130238255","02/01/2019","Adult Education","Continuing Education","R4000"
"Wolverhampton City Council","http://opendatacommunities.org/id/metropolitan-district-council/wolverhampton","717406","Cooksongold","BI1902492","3.30","Comms - Postage","130238255","02/01/2019","Adult Education","Continuing Education","R4503"
"Wolverhampton City Council","http://opendatacommunities.org/id/metropolitan-district-council/wolverhampton","717406","Cooksongold","BI1902552","54.68","Equipment - Purchase","130238086","02/01/2019","Adult Education","Continuing Education","R4000"
"Wolverhampton City Council","http://opendatacommunities.org/id/metropolitan-district-council/wolverhampton","717406","Cooksongold","BI1902552","4.47","Comms - Postage","130238086","02/01/2019","Adult Education","Continuing Education","R4503"
"Wolverhampton City Council","http://opendatacommunities.org/id/metropolitan-district-council/wolverhampton","717406","Cooksongold","BI1894879","14.82","Materials for resale","130239675","04/01/2019","Adult Education","Continuing Education","R4008"
"Wolverhampton City Council","http://opendatacommunities.org/id/metropolitan-district-council/wolverhampton","717406","Cooksongold","BI1894879","3.30","Comms - Postage","130239675","04/01/2019","Adult Education","Continuing Education","R4503"
"Wolverhampton City Council","http://opendatacommunities.org/id/metropolitan-district-council/wolverhampton","717421","The Child Psychology Service","1836","596.00","Direct Work With Children","130239030","16/01/2019","Children & Young People In Care","Adoption Support Fund","R6310"
"Wolverhampton City Council","http://opendatacommunities.org/id/metropolitan-district-council/wolverhampton","717449","Central London Com. Healthcare NHS trust","2000004813 GUM OOA OCT 18","266.00","TPP - Public Health Contracts","190545892","04/01/2019","Starting and Developing Well","Sexual Health","R5060"
"Wolverhampton City Council","http://opendatacommunities.org/id/metropolitan-district-council/wolverhampton","717480","John Moore (Tractor Parts) Ltd","SIN104352","28.11","Equipment - Purchase","190548964","11/01/2019","Fleet Services","Fleet Management","R4000"
"Wolverhampton City Council","http://opendatacommunities.org/id/metropolitan-district-council/wolverhampton","717480","John Moore (Tractor Parts) Ltd","SIN104352","18.50","Equipment - Purchase","190548964","11/01/2019","Fleet Services","Fleet Management","R4000"
"Wolverhampton City Council","http://opendatacommunities.org/id/metropolitan-district-council/wolverhampton","717480","John Moore (Tractor Parts) Ltd","SIN104352","16.70","Equipment - Purchase","190548964","11/01/2019","Fleet Services","Fleet Management","R4000"
"Wolverhampton City Council","http://opendatacommunities.org/id/metropolitan-district-council/wolverhampton","717495","Nottinghamshire County Council","92192204","210.00","Direct Work With Children","130241322","23/01/2019","Children & Young People In Care","Adoption Support Fund","R6310"
"Wolverhampton City Council","http://opendatacommunities.org/id/metropolitan-district-council/wolverhampton","717558","Chris Martin","248","975.00","Services - Professional Fees","130239458","09/01/2019","Visitor Economy","ALV - Darts & Comedy","R4400"
"Wolverhampton City Council","http://opendatacommunities.org/id/metropolitan-district-council/wolverhampton","717591","Engaging Communities Staffordshire CIC","384","4,321.08","TPP - Social Care Support Services","130239460","11/01/2019","Strategic Commissioning","Local Reform and Community Voices Grant","R5501"
"Wolverhampton City Council","http://opendatacommunities.org/id/metropolitan-district-council/wolverhampton","717591","Engaging Communities Staffordshire CIC","383","16,190.75","TPP - Social Care Support Services","130239459","11/01/2019","Strategic Commissioning","Local Reform and Community Voices Grant","R5501"
"Wolverhampton City Council","http://opendatacommunities.org/id/metropolitan-district-council/wolverhampton","717605","Little Walkers Day Nursery","NEF Spring 2019 INST 1","21,884.10","TPP - Private Nursery Education Funding","190553185","23/01/2019","Early Years","Early Years Universal Entitlement for 3 and 4 Year Olds","R5035"
"Wolverhampton City Council","http://opendatacommunities.org/id/metropolitan-district-council/wolverhampton","717605","Little Walkers Day Nursery","TFT Spring 2019 Inst 1","5,093.28","TPP - Private Nursery Education Funding","190553192","23/01/2019","Early Years","Early Years Entitlement Funding for Disadvantaged 2 Year Olds","R5035"
"Wolverhampton City Council","http://opendatacommunities.org/id/metropolitan-district-council/wolverhampton","717652","Scotts Hire Limited","205219","270.00","Equipment - Hire","130239624","25/01/2019","Bereavement Services","Cemeteries","R4001"
"Wolverhampton City Council","http://opendatacommunities.org/id/metropolitan-district-council/wolverhampton","717652","Scotts Hire Limited","205220","270.00","Equipment - Hire","130239625","25/01/2019","Bereavement Services","Cemeteries","R4001"
"Wolverhampton City Council","http://opendatacommunities.org/id/metropolitan-district-council/wolverhampton","717709","Prometheus Safe and Secure Ltd","10087","1,705.00","Client Transport","130242250","30/01/2019","Children & Young People In Care","Looked After Team 1","R3042"
"Wolverhampton City Council","http://opendatacommunities.org/id/metropolitan-district-council/wolverhampton","717709","Prometheus Safe and Secure Ltd","10076","3,871.50","Client Transport","130241938","30/01/2019","Children & Young People In Care","Looked After Team 1","R3042"
"Wolverhampton City Council","http://opendatacommunities.org/id/metropolitan-district-council/wolverhampton","717737","Direct Digital Controls Limited","5481","743.16","R&M - Departmental planned (external)","130238503","11/01/2019","Maintenance Programme","Centralised R&M","R2001"
"Wolverhampton City Council","http://opendatacommunities.org/id/metropolitan-district-council/wolverhampton","717743","Sanderson Funerals","HMCH032","593.92","Hire of Vehicles","130240592","23/01/2019","Public Service Reform","Coroners Service","R3200"
"Wolverhampton City Council","http://opendatacommunities.org/id/metropolitan-district-council/wolverhampton","717743","Sanderson Funerals","HMCC033","370.00","Hire of Vehicles","130240591","25/01/2019","Public Service Reform","Coroners Service","R3200"
"Wolverhampton City Council","http://opendatacommunities.org/id/metropolitan-district-council/wolverhampton","717752","Qlickit Limited","2509","58,530.75","Computing - Purchase of Software","130239461","09/01/2019","Digital Transformation Programme","Digital Transformation Programme","R4531"
"Wolverhampton City Council","http://opendatacommunities.org/id/metropolitan-district-council/wolverhampton","717763","ACRE Development Consulting","C1056","5,650.00","Services - Professional Fees","130239258","23/01/2019","City Development","City Development  - Core Team","R4400"
"Wolverhampton City Council","http://opendatacommunities.org/id/metropolitan-district-council/wolverhampton","717767","Henry Howard Finance Plc","WCC0012","385.38","Services - Supplies and Services to service users","130240445","16/01/2019","Learning Disability Provider","City Links","R4408"
"Wolverhampton City Council","http://opendatacommunities.org/id/metropolitan-district-council/wolverhampton","717769","Hilton Main Lighting & Connections Ltd","1178","750.00","Construction and Conversion","130237930","04/01/2019","-","Safety Programme","C1100"
"Wolverhampton City Council","http://opendatacommunities.org/id/metropolitan-district-council/wolverhampton","717845","Philip Kolvin QC","142825","875.00","Services - Professional Fees","130239156","23/01/2019","Public Protection","City Centre","R4400"
"Wolverhampton City Council","http://opendatacommunities.org/id/metropolitan-district-council/wolverhampton","717851","Norton Hill School","P19657520190122","600.00","Grant Payments to Individuals","190553903","23/01/2019","Inclusion Support","Pupil Premium","R6402"
"Wolverhampton City Council","http://opendatacommunities.org/id/metropolitan-district-council/wolverhampton","717863","Donna Widdows","NEF Spring 19 January","153.00","TPP - Private Nursery Education Funding","190553183","23/01/2019","Early Years","Early Years Universal Entitlement for 3 and 4 Year Olds","R5035"
"Wolverhampton City Council","http://opendatacommunities.org/id/metropolitan-district-council/wolverhampton","717863","Donna Widdows","4","340.00","TPP - Child Care provided for client","130239463","16/01/2019","Adult Education","Discretionary Fund","R5034"
"Wolverhampton City Council","http://opendatacommunities.org/id/metropolitan-district-council/wolverhampton","717881","Royal Stoke Hospital","I0010171","120.00","Services - Professional Fees","130241324","23/01/2019","Public Service Reform","Coroners Service","R4400"
"Wolverhampton City Council","http://opendatacommunities.org/id/metropolitan-district-council/wolverhampton","717916","Argus Software","IN-013-011560","3,240.00","Computing - Purchase of Software","130242254","30/01/2019","City Development","City Development  - Core Team","R4531"
"Wolverhampton City Council","http://opendatacommunities.org/id/metropolitan-district-council/wolverhampton","717933","Derby Comm. Health Ser. NHS Found. Trust","11901469 Out of Area Oct 18","135.20","TPP - Public Health Contracts","190548623","11/01/2019","Starting and Developing Well","Sexual Health","R5060"
"Wolverhampton City Council","http://opendatacommunities.org/id/metropolitan-district-council/wolverhampton","717995","Barnardo Services Limited","242002906","2,500.00","TPP - Short Breaks","130238229","09/01/2019","Children & Young People In Care","Short Breaks","R5500"
"Wolverhampton City Council","http://opendatacommunities.org/id/metropolitan-district-council/wolverhampton","717995","Barnardo Services Limited","242002886","73,750.00","TPP - Social Care Support Services","130237079","02/01/2019","Specialist Support","Therapeutic Support Team","R5501"
"Wolverhampton City Council","http://opendatacommunities.org/id/metropolitan-district-council/wolverhampton","718163","Laura Vickers","803000524","1,950.00","Services - Professional Fees","130241061","23/01/2019","Legal Services","Centralised External Legal Costs","R4400"
"Wolverhampton City Council","http://opendatacommunities.org/id/metropolitan-district-council/wolverhampton","718215","Straight Manufacturing Ltd","0000041749","109.95","Services - Fees and Charges","130241062","25/01/2019","Waste and Recycling Service","Waste Collection and Recycling Service - General","R4401"
"Wolverhampton City Council","http://opendatacommunities.org/id/metropolitan-district-council/wolverhampton","718237","Rollover","SI643187","27.00","Provisions (Resale)","130237080","09/01/2019","Leisure Services","WV Active Catering","R4102"
"Wolverhampton City Council","http://opendatacommunities.org/id/metropolitan-district-council/wolverhampton","718237","Rollover","SI643187","241.45","Provisions (Resale)","130237080","09/01/2019","Leisure Services","WV Active Catering","R4102"
"Wolverhampton City Council","http://opendatacommunities.org/id/metropolitan-district-council/wolverhampton","718266","ELS Exterior Lighting Solutions (UK) Limited","9581","4,389.18","Materials","130238066","09/01/2019","Street Lighting","Street Lighting Maintenance","R4007"
"Wolverhampton City Council","http://opendatacommunities.org/id/metropolitan-district-council/wolverhampton","718266","ELS Exterior Lighting Solutions (UK) Limited","9581","120.00","Materials","130238066","09/01/2019","Street Lighting","Street Lighting Maintenance","R4007"
"Wolverhampton City Council","http://opendatacommunities.org/id/metropolitan-district-council/wolverhampton","718292","First Aid Warehouse","384195","7.38","Materials","130238504","09/01/2019","Specialist Support","Upper Pendeford Farm Short Breaks Centre","R4007"
"Wolverhampton City Council","http://opendatacommunities.org/id/metropolitan-district-council/wolverhampton","718292","First Aid Warehouse","383224","20.00","Materials","130237931","04/01/2019","Local Economy","Global Budgets","R4007"
